Cogmind - Beta 17 @@@ ROGUE MODE // 2026.07.18 @ 16:28:04 Player: Cracklepappy Result: Destroyed by P-80 Master with Gamma Rifle Performance ------------- Evolutions (7) 3500 Regions Visited (21) 4200 Robots Destroyed (420) 2100 Value Destroyed (23260) 23260 Prototype IDs (301) 6020 Alien Tech Used (3) 600 Bonus (37075) 37075 TOTAL SCORE: 76755 Bonus ------- High Alert Combat Kills 4902 Follower Combat Kills 1379 Prayed to X0-1V1 5000 Major X0-1V1 Interference 16100 Delivered SUBCON Basin 2000 Registered with UFD 300 Met Optimus in HQ 500 Met Data Miner 300 Used Data Conduit 3000 Met Zhirov 300 Met Warlord at Base 500 MAIN.C Attacked Warlord 500 Warlord Defense Kills 100 Scanned by Researcher 500 Pursued by Intercept 2000 Friendly Fire -306 Cogmind --------- Core Integrity 0/1350 Matter 209/300 Energy 507/1650 System Corruption 46% Temperature Cool (50) Movement Walking (110) Location -3/Protoforge Parts ------- > --- POWER (2) -------- Improved Quantum Reactor Hybrid Graviton Reactor > --- PROPULSION (6) --- Experimental Armored Exoskeleton Concept Biometal Exoskeleton > --- UTILITY (9) ------ Concept Phasing Heat Sink Huge Storage Unit Femtoactuators Graphene Brace A0-MCA's Component Scanner > --- WEAPON (5) ------- Concept Variable Chargecaster Experimental Jetlance > --- INVENTORY (25) --- Hybrid Graviton Reactor Experimental Armored Exoskeleton Experimental Armored Exoskeleton Concept NT7 Matterbank (750) Concept NT7 Matterbank (750) Experimental Armor Integrity Analyzer Precision Matter Filter Concept Antimissile System Deep Network Scanner Ghost Barrier Ghost Barrier Advanced Component Analysis Suite Crosscalibrator Transdimensional Reconstructor Subatomic Replicator Gamma Bomb Array Improved Plasma Cutter Experimental Jetlance Self-destruct Interrupter (48) Peak State ------------ > --- POWER ------------ Improved Quantum Reactor Hybrid Graviton Reactor > --- PROPULSION ------- Experimental Armored Exoskeleton Concept Biometal Exoskeleton > --- UTILITY ---------- Experimental Heat Sink Concept Phasing Heat Sink Huge Storage Unit Concept Projectile Intercept Suite Femtoactuators Concept Core Shell Graphene Brace Advanced Force Field A0-MCA's Component Scanner > --- WEAPON ----------- Linked Autogun Centrium Greatsword Experimental Jetlance > --- INVENTORY -------- Hybrid Graviton Reactor Experimental Armored Exoskeleton Experimental Armored Exoskeleton Concept NT7 Matterbank Concept NT7 Matterbank Experimental Armor Integrity Analyzer Precision Matter Filter Concept Antimissile System Deep Network Scanner Ghost Barrier Ghost Barrier Advanced Component Analysis Suite Crosscalibrator X0-1V1's Piety Tracker Transdimensional Reconstructor Subatomic Replicator Gamma Bomb Array Improved Plasma Cutter Self-destruct Interrupter [Rating: 226] Favorites ----------- Power Fission Core Engine Reinforced Deuterium Engine Power Core Fission Core Reactor Heavy Antimatter Reactor Propulsion Wheel Treads Light Treads Leg Aluminum Leg Wheel Wheel Hover Unit Improved Hover Unit Flight Unit VTOL Module Utility X0-1V1's Piety Tracker Device X0-1V1's Piety Tracker Storage Huge Storage Unit Processor Tech Extrapolator Hackware Authchip [Armor] Protection Layered Medium Armor Plating Weapon Light Cannon Energy Gun Shock Rifle Energy Cannon Phase Cannon Ballistic Gun KE Penetrator Ballistic Cannon Light Cannon Launcher Gamma Bomb Array Special Weapon Improved Plasma Cutter Impact Weapon Great Maul Slashing Weapon Power Sword Piercing Weapon Experimental Jetlance Build | -11 -10 -10 -8 -8 -6 -6 -6 -5 -5 -5 -5 -5 -4 -4 -4 -4 -4 -3 -3 -3 -3 ------- Run | Yrd Mat Sub Rec Scr Fac Low Dat Pro Fac Upp Upp War Pro Fac Upp Upp Zhi Pro Res Qua Frg Slots Evolved 14 | . . . . . 8 . . . 2 . . . . 2 . . . . 2 . . Power . | . . . . . . . . . . . . . . . . . . . . . . Propulsion 3 | . . . . . 2 . . . . . . . . . . . . . 1 . . Utility 8 | . . . . . 5 . . . 2 . . . . 1 . . . . . . . Weapon 3 | . . . . . 1 . . . . . . . . 1 . . . . 1 . . Parts Attached 344 | 6 10 35 6 4 78 6 6 4 4 . . 7 1 51 25 5 7 8 32 13 36 Power 37 | . 3 5 . 1 8 . 1 . . . . 1 . 6 2 1 2 1 . 1 5 Engine 15 | . 2 5 . 1 4 . . . . . . . . 2 1 . . . . . . Core 11 | . 1 . . . 4 . . . . . . . . 4 . 1 1 . . . . Reactor 11 | . . . . . . . 1 . . . . 1 . . 1 . 1 1 . 1 5 Propulsion 88 | 2 1 18 3 . 20 1 . 1 1 . . 1 1 15 7 2 . 2 5 1 7 Treads 43 | 2 1 8 . . 6 . . . 1 . . 1 . 5 5 2 . 2 4 1 5 Leg 10 | . . 2 . . 3 . . . . . . . . 2 . . . . 1 . 2 Wheel 33 | . . 7 2 . 11 1 . 1 . . . . 1 8 2 . . . . . . Hover . | . . . . . . . . . . . . . . . . . . . . . . Flight 2 | . . 1 1 . . . . . . . . . . . . . . . . . . Utility 111 | 2 3 4 . 2 26 3 2 3 1 . . 1 . 13 8 . 1 5 13 7 17 Device 65 | 2 1 2 . 1 13 1 . 3 1 . . 1 . 7 6 . 1 3 9 5 9 Storage 7 | . 1 1 . . 1 1 . . . . . . . . 1 . . . 2 . . Processor 14 | . . . . 1 4 . . . . . . . . 4 1 . . 1 . 1 2 Hackware 2 | . . . . . . . . . . . . . . 2 . . . . . . . Protection 23 | . 1 1 . . 8 1 2 . . . . . . . . . . 1 2 1 6 Artifact . | . . . . . . . . . . . . . . . . . . . . . . Weapon 108 | 2 3 8 3 1 24 2 3 . 2 . . 4 . 17 8 2 4 . 14 4 7 Energy Gun 28 | 1 1 4 2 . 3 . . . . . . 1 . 6 3 2 . . 3 . 2 Energy Cannon 22 | . . . . . 8 . 2 . 1 . . 1 . 3 1 . . . 3 2 1 Ballistic Gun 29 | 1 . 3 . . 10 . . . 1 . . . . 5 3 . 1 . 5 . . Ballistic Cannon 12 | . 2 . . . 1 2 . . . . . . . . 1 . 2 . 2 1 1 Launcher 5 | . . . 1 . 2 . . . . . . 1 . . . . . . 1 . . Special Weapon 2 | . . . . . . . . . . . . 1 . 1 . . . . . . . Impact Weapon 3 | . . 1 . 1 . . . . . . . . . . . . . . . 1 . Slashing Weapon 4 | . . . . . . . . . . . . . . 2 . . . . . . 2 Piercing Weapon 3 | . . . . . . . 1 . . . . . . . . . 1 . . . 1 Special Melee Weapon . | . . . . . . . . . . . . . . . . . . . . . . Unidentified Prototypes 10 | . 1 . . . 1 1 . . . . . 1 . . 1 . 1 . . 3 1 Corrupted Parts 12 | . . . . . 1 . 1 . . . . . . 1 3 2 . . . . 4 System Corruption 67 | . . . . . 2 . 5 . . . . . . 9 8 16 . . . . 27 Parts Lost 132 | . . 12 7 . 24 . 3 . . . . . . 30 24 3 . 1 1 1 26 Power 14 | . . 2 1 . 2 . 1 . . . . . . 4 2 1 . . . . 1 Propulsion 41 | . . 5 3 . 10 . 2 . . . . . . 9 7 1 . . . . 4 Utility 42 | . . 2 . . 9 . . . . . . . . 9 6 . . 1 1 1 13 Weapon 35 | . . 3 3 . 3 . . . . . . . . 8 9 1 . . . . 8 Highest Loss Streak 17 | . . 4 5 . 5 . 2 . . . . . . 7 17 3 . 1 1 1 14 To Critical Strikes 1 | . . 1 . . . . . . . . . . . . . . . . . . . Average Backups 17 | 2 15 5 3 14 20 22 23 22 21 22 22 22 22 22 20 22 22 22 22 22 21 Power . | . 1 . . . . . . . . . . . . . . 1 . . 1 . . Propulsion 1 | . 7 2 . 2 2 4 1 1 2 3 3 2 1 1 . . . . . . . Utility 9 | . 3 . 2 5 6 10 11 12 11 11 11 13 13 13 14 16 15 14 14 14 14 Weapon 5 | 1 3 1 . 6 9 6 9 7 7 7 7 5 5 6 3 3 4 5 4 4 2 Tool/Special . | . . . . . . . . . . . . . . . . . . . . . . Unused Backups 123 | . 5 12 1 13 24 3 . 2 2 . 3 2 3 8 2 2 3 1 6 5 26 Power 8 | . 1 . . . 1 1 . . . . . . . . 1 . . . . 1 3 Propulsion 21 | . 1 5 . 4 2 . . . . . . . . 1 . . . 1 . 1 6 Utility 59 | . 3 5 1 5 11 1 . . . . 3 . 2 4 1 1 3 . 4 2 13 Weapon 30 | . . 2 . 3 10 1 . 2 1 . . 2 . 3 . 1 . . 2 1 2 Tool/Special 5 | . . . . 1 . . . . 1 . . . 1 . . . . . . . 2 Average Slot Usage (%) 89 | . 96 92 72 93 92 92 86 98 93 94 94 89 88 85 78 89 89 92 84 78 77 Engine 3 | . 6 10 7 5 3 6 6 6 5 5 5 . . . 2 . . . . . . Core 4 | . 6 . 7 19 8 6 4 . . . . . . 2 . 3 4 1 . . . Reactor 2 | . . . . . . . 1 6 5 5 5 4 5 3 1 5 5 8 8 7 8 Treads 13 | . 28 19 1 20 9 6 16 13 5 5 5 5 5 6 6 15 25 18 12 12 11 Wheel 5 | . . 6 8 3 11 18 9 10 11 11 11 11 11 10 8 . . . . . . Device 18 | . 10 12 12 10 15 11 12 16 26 27 27 27 27 23 27 35 35 33 24 21 19 Storage 7 | . 12 14 12 12 6 6 6 6 5 5 5 5 5 5 5 5 5 5 4 4 4 Processor 6 | . . . . 1 13 11 6 6 5 5 5 5 5 12 12 10 10 7 8 8 10 Protection 4 | . 4 . . . 5 5 7 12 11 11 11 11 11 5 . . . 3 2 4 5 Energy Gun 2 | . 9 5 4 3 . . . . . . . . . 4 . 13 . . 1 . . Energy Cannon 3 | . . . . 4 2 . 4 . 2 5 5 7 9 5 1 . . . 2 6 3 Ballistic Gun 4 | . . 4 . . 9 7 . 8 11 11 11 8 5 3 5 . . 5 13 3 3 Ballistic Cannon 5 | . 16 12 . 5 3 10 6 9 2 . . . . . 3 . . 10 3 5 1 Impact Weapon 1 | . . 1 11 4 . . . . . . . . . . . . . . . . . Peak Build Rating 226 | 7 21 46 45 51 86 81 84 93 109 109 110 124 122 136 113 125 129 149 186 209 226 Average Rating 89 | 4 9 37 39 39 73 76 72 86 105 109 109 119 121 123 95 111 115 140 165 178 194 On Entrance 91 | . 7 21 43 23 44 77 76 84 92 109 109 109 122 118 113 110 125 129 149 166 196 Avg Prop Armor Cover (%) 8 | 33 31 7 11 5 8 5 14 11 5 5 5 5 5 9 11 . . . 2 . 7 Naked Turns . | . . . . . . . . . . . . . . . . . . . . . . Heaviest Build 196 | 3 52 65 69 70 144 147 152 150 154 154 154 166 169 181 129 129 149 154 192 196 194 Greatest Support 246 | 3 40 40 32 60 103 30 60 38 38 38 38 38 48 103 48 136 136 157 210 230 246 Greatest Overweight (x) 17 | . 1 17 17 5 8 4 7 14 5 4 4 4 4 7 8 1 1 1 1 . 1 Average Overweight (x) 2 | . . 1 4 1 1 4 5 7 3 4 4 3 3 3 3 . . . . . . Largest Inventory Capacity 25 | 5 20 20 20 20 25 25 25 25 25 25 25 25 25 25 25 25 25 25 25 25 25 Average Capacity 22 | 5 18 20 20 20 21 25 25 25 25 25 25 25 25 25 25 25 25 25 25 25 25 Most Carried 25 | 5 20 20 20 20 25 25 25 25 25 25 25 25 25 25 25 25 25 25 25 25 25 Average Carried 21 | 3 16 19 19 14 20 24 24 24 24 25 24 24 24 24 21 24 24 24 24 24 24 Final Capacity 25 | 5 20 20 20 20 25 25 25 25 25 25 25 25 25 25 25 25 25 25 25 25 25 Final Carried 25 | 5 20 20 6 20 25 25 25 25 25 25 25 25 25 24 25 25 25 25 25 25 25 Transmogrified Parts 39 | . . . 4 35 . . . . . . . . . . . . . . . . . Integrity Recovered 188 | . . . 70 118 . . . . . . . . . . . . . . . . . Class Distribution -------------------- 37% | Mutant 35% | Scavenger-Tank 7% | Scavenger-Mutant 5% | Scavenger-Gunner 4% | Tank Dominant Class ---------------- Mutant | -10/Materials Mutant | -10/Subcaves Mutant | -8/Recycling Mutant | -8/Scraptown Scavenger-Tank | -6/Factory Scavenger-Gunner | -6/Lower Caves Scavenger-Tank | -6/Data Miner Scavenger-Tank | -5/Proximity Caves Scavenger-Tank | -5/Factory Scavenger-Tank | -5/Upper Caves Scavenger-Tank | -5/Upper Caves Scavenger-Tank | -5/Warlord Scavenger-Tank | -4/Proximity Caves Scavenger-Tank | -4/Factory Scavenger-Mutant | -4/Upper Caves Scavenger-Tank | -4/Upper Caves Scavenger-Mutant | -4/Zhirov Derelict-Tank | -3/Proximity Caves Scavenger-Executioner | -3/Research Scavenger-Tank | -3/Quarantine Scavenger-Tank | -3/Protoforge Resources | -11 -10 -10 -8 -8 -6 -6 -6 -5 -5 -5 -5 -5 -4 -4 -4 -4 -4 -3 -3 -3 -3 ----------- Run | Yrd Mat Sub Rec Scr Fac Low Dat Pro Fac Upp Upp War Pro Fac Upp Upp Zhi Pro Res Qua Frg Matter Collected 17846 | 260 266 1887 170 56 2990 326 346 306 281 531 32 92 153 1714 1284 113 102 879 1974 229 3855 Remotely 1999 | . . . . . 483 . . . 149 . . . . . . . . 124 834 . 409 Salvage Created 22680 | 83 433 1288 675 . 4076 40 346 50 285 145 125 26 83 3533 1019 363 313 552 2019 570 6656 Parts 959 | 12 23 99 15 . 173 1 19 1 17 6 3 1 12 156 32 6 3 16 98 21 245 Haulers Intercepted 3 | . 2 . . . 1 . . . . . . . . . . . . . . . . Recyclers Shooed 13 | . 2 . 3 . 4 . . . 2 . . . . 2 . . . . . . . Parts Field Recycled . | . . . . . . . . . . . . . . . . . . . . . . Retrieved Matter . | . . . . . . . . . . . . . . . . . . . . . . Parts Self-Destructed 118 | . . 64 . . . 1 . 1 . 6 3 . 8 . 19 . . 16 . . . Prevented 6 | . . 2 . . . . . . . . . . . . 4 . . . . . . Parts Restored 2 | . . . . . . . . . . . . . . . . . . . . . 2 Faulty 2 | . . . . . . . . . . . . . . . . . . . . . 2 Kills | -11 -10 -10 -8 -8 -6 -6 -6 -5 -5 -5 -5 -5 -4 -4 -4 -4 -4 -3 -3 -3 -3 ------- Run | Yrd Mat Sub Rec Scr Fac Low Dat Pro Fac Upp Upp War Pro Fac Upp Upp Zhi Pro Res Qua Frg Combat Hostiles Destroyed 354 | . 12 42 6 . 55 1 3 1 5 4 . 1 7 61 12 4 . 12 30 8 90 Melee 16 | . . . 1 . . . . . . . . . . . . . . . . . 15 Guns 126 | . 3 34 1 . 25 . . . 4 3 . . . 17 6 3 . 2 22 . 6 Cannons 96 | . 9 5 . . 16 1 . 1 1 1 . . . 18 6 . . 10 7 7 14 AOE 55 | . . 2 1 . 8 . . . . . . 1 7 21 . . . . . . 15 Classes Destroyed 28 | 1 4 3 3 . 6 1 . . . . . . . 1 1 1 . . 1 1 5 Worker 18 | . 1 . 1 . 8 . . . 1 . . . . 4 . . . . 2 . 1 Builder 12 | . . . 3 . 5 . . . 1 . . . . 2 . . . . . . 1 Tunneler 7 | 5 . . . . . . . . . . . . . 1 . . . . 1 . . Hauler 3 | . 2 . . . 1 . . . . . . . . . . . . . . . . Recycler 17 | . . . 6 . 6 . . . . . . . . 5 . . . . . . . Mechanic 3 | . . . . . . . . . . . . . . . . . . . . . 3 Drone 8 | . . . . . . . . . . . . . . . . . . . . . 8 Watcher 2 | . . . . . . . . . . . . . . . . . . . 1 . 1 Swarmer 72 | . 3 18 . . . . . . 1 4 . . 7 19 4 1 . 4 6 . 5 Saboteur 1 | . . . . . 1 . . . . . . . . . . . . . . . . Grunt 95 | . 9 12 . . 24 . . . 4 . . 1 . 10 7 1 . 7 7 . 13 Brawler 5 | . . . . . . . . . . . . . . 1 1 . . 1 . . 2 Duelist 11 | . . . . . 1 . . . . . . . . 2 . . . . . . 8 Protector 4 | . . . . . 1 . . . . . . . . 1 . . . . . . 2 Researcher 5 | . . . . . . . . . . . . . . . . . . . . . 5 Sentry 29 | . . 1 4 . 6 . . . . . . . . 6 . 1 . . 3 . 8 Specialist 8 | . . . . . 4 . . . . . . . . 2 . . . . . . 2 Hunter 26 | . . . . . 10 . . . . . . . . 8 . . . . 6 . 2 Programmer 33 | . . . 2 . 5 . . . . . . . . 8 . . . . 5 3 10 Heavy 3 | . . . . . 3 . . . . . . . . . . . . . . . . Behemoth 5 | . . . . . . 1 . 1 . . . . . 1 . . . . 2 . . Enhanced Grunt 3 | . . . . . . . 3 . . . . . . . . . . . . . . Hotshot 3 | . . . . . . . . . . . . . . . . . . . . . 3 Decapitator 6 | . . . . . . . . . . . . . . . . . . . . . 6 Immortal 10 | . . . . . . . . . . . . . . . . . . . . . 10 Tracker 7 | . . . . . . . . . . . . . . 2 . . . . . 2 3 Combat Programmer 8 | . . . . . . . . . . . . . . 1 . . . . 1 2 4 Fortress 1 | . . . . . . . . . . . . . . . . . . . . 1 . V-Series 4 | . . . . . . . . . . . . . . . . . . . . . 4 Subdweller 11 | . . 11 . . . . . . . . . . . . . . . . . . . Zionite 2 | . . 2 . . . . . . . . . . . . . . . . . . . Samaritan 7 | . . . . . . . . . . . . . . . 5 2 . . . . . Mutant 1 | . . . . . . . . . . . . . . . . 1 . . . . . Best Kill Streak 15 | 5 3 5 4 . 15 1 1 1 3 4 . 1 4 11 4 3 . 4 7 4 10 Combat Bots Only 10 | . 3 5 3 . 10 1 1 1 2 4 . 1 4 9 4 3 . 4 4 4 9 Max Kills in Single Turn 5 | 1 1 2 2 . 3 1 1 1 1 2 . 1 3 5 1 1 . 1 3 1 4 Gunslinging 1 | . . . . . . . . . . . . . . 1 . . . . . . . Exploded 5 | . . 2 1 . 3 . . . . . . 1 3 5 . . . . . . 3 Melee 1 | . . . 1 . . . . . . . . . . . . . . . . . 1 Uniques/NPCs Destroyed 1 | . . . . . . . 1 . . . . . . . . . . . . . . Data Miner (-6/Data Miner) Combat | -11 -10 -10 -8 -8 -6 -6 -6 -5 -5 -5 -5 -5 -4 -4 -4 -4 -4 -3 -3 -3 -3 -------- Run | Yrd Mat Sub Rec Scr Fac Low Dat Pro Fac Upp Upp War Pro Fac Upp Upp Zhi Pro Res Qua Frg Hostile Shots Fired 2742 | . 67 263 78 . 537 9 20 2 24 6 . 10 6 501 200 42 . 76 162 140 599 Missed 742 | . 25 69 19 . 183 2 5 . 8 3 . 5 2 134 42 23 . 20 48 15 139 Deflected 13 | . . . . . . . . . . . . . . . . . . . . . 13 Hits 2000 | . 42 194 59 . 354 7 15 2 16 3 . 5 4 367 158 19 . 56 114 125 460 Melee 113 | . . . . . . . . . . . . . . 12 7 . . . . . 94 Projectile 1887 | . 42 194 59 . 354 7 15 2 16 3 . 5 4 355 151 19 . 56 114 125 366 AOE 6 | . . . . . 1 . . . . . . . . . . . . . . . 5 Critical Strikes 130 | . . 2 6 . 11 . . . . . . . . 27 7 3 . 2 3 6 63 Actively Blocked 106 | . . . . . . . . . . . . . . 27 7 3 . . . 6 63 Part Disruptions 10 | . . . . . . . 1 . . . . . . 4 1 . . . 1 . 3 Damage Taken 35720 | . 447 2699 986 . 5677 195 694 59 206 32 . 91 28 6464 2485 269 . 815 2243 1624 10706 Core 3810 | . 63 461 321 . 511 . 47 . . 21 . . . 529 446 28 . 31 193 57 1102 Absorbed by Shields 5786 | . . . . . 104 . . . 77 13 . 34 27 538 . . . . . 961 4032 Reduced by Siege Mode 922 | . . . . . . . . . . . . . . . 181 . . 4 . 124 613 Redirected to Shielding 217 | . 2 . . . . . . . . . . . . . . . . . . . 215 Ignored by Resistances 2579 | . . . . . 182 . . . . . . . . 1246 473 104 . 339 235 . . Regen/Repaired (Parts) 228 | . 115 . . . . . . . . . . 34 . 79 . . . . . . . Core Remaining (%) 64 | 100 . . . 18 . . . 78 . . . . 98 . . . . 28 . . . Volleys Fired 1052 | 17 40 155 10 . 175 6 18 3 33 8 1 6 4 170 55 12 3 35 67 33 201 Largest 7 | 1 2 2 1 . 3 3 2 3 3 3 3 3 1 3 3 3 1 3 7 4 5 Hottest 390 | 40 80 90 63 . 250 99 144 83 133 133 133 148 43 218 214 224 55 144 390 263 375 Shots Fired 2120 | 17 69 213 12 . 419 12 24 9 68 18 3 14 5 356 103 37 2 93 289 71 286 Gun 1155 | 17 37 160 7 . 275 3 . 5 36 10 2 4 . 189 55 37 . 23 225 14 56 Cannon 862 | . 32 53 . . 130 9 24 4 32 8 1 8 1 155 48 . 2 70 64 57 164 Launcher 79 | . . . 5 . 14 . . . . . . 2 4 11 . . . . . . 43 Special 24 | . . . . . . . . . . . . . . 1 . . . . . . 23 Kinetic 1148 | . 36 135 . . 280 12 . 9 46 10 2 4 . 68 60 2 2 93 263 43 83 Thermal 687 | 17 33 61 7 . 114 . . . 22 8 1 8 1 221 37 31 . . 26 19 81 Explosive 24 | . . . 5 . 2 . . . . . . 2 4 11 . . . . . . . Electromagnetic 238 | . . 17 . . 23 . 24 . . . . . . 33 6 4 . . . 9 122 Entropic 22 | . . . . . . . . . . . . . . 22 . . . . . . . Robot Hit Streak 31 | 8 13 24 16 . 24 13 18 11 19 8 10 13 . 18 17 16 . 7 15 8 31 Robot Miss Streak 7 | 1 4 7 . . 6 2 1 . 7 1 . 2 . 4 2 3 . 7 4 3 7 Penetration Max 1 | . . . . . 1 . . . 1 . 1 . . 1 . . . 1 . 1 1 Secondary Targets 15 | . . 3 . . 6 . . . . . . . . 3 . 1 . . 2 . . Max Gunslinging Chain 1 | . . 1 . . 1 . . . . . . . . 1 . 1 . . 1 . . Shots Hit Robots 1510 | 16 44 141 36 . 306 8 20 8 29 10 2 10 . 242 75 33 5 48 177 35 265 Core Hits 905 | 6 22 55 12 . 207 11 7 4 19 6 2 6 8 137 33 15 4 23 82 16 230 Critical Kills 17 | . . . 1 . . . . . . . . . . 4 . . . 4 7 . 1 Critical Parts Destroyed 32 | . . 1 3 . 3 . . . . 1 . . . 9 1 . . 4 4 2 4 Critical Strikes 112 | . 5 6 5 . 7 . . 1 1 1 . . . 21 2 5 1 10 13 5 29 Burn 16 | . 2 1 1 . . . . . . . . . . 7 . 4 . . 1 . . Meltdown 1 | . . . . . . . . . . . . . . . . . . . . . 1 Destroy 47 | . . 2 . . 3 . . . . 1 . . . 10 2 . . 8 12 2 7 Blast 18 | . 3 3 . . 4 . . 1 1 . . . . . . . . 2 . 3 1 Corrupt 2 | . . . . . . . . . . . . . . 1 . 1 . . . . . Smash 4 | . . . 4 . . . . . . . . . . . . . . . . . . Impale 21 | . . . . . . . . . . . . . . . . . 1 . . . 20 Detonate 3 | . . . . . . . . . . . . . . 3 . . . . . . . Melee Attacks 198 | . . 6 28 . . . 22 . . . . . . 8 11 4 5 . . 2 112 Kinetic 2 | . . . . . . . . . . . . . . . . . . . . 2 . Impact 34 | . . 6 28 . . . . . . . . . . . . . . . . . . Slashing 38 | . . . . . . . . . . . . . . 8 11 4 . . . . 15 Piercing 124 | . . . . . . . 22 . . . . . . . . . 5 . . . 97 Sneak Attacks 33 | . . . 10 . . . 1 . . . . . . 6 7 3 . . . . 6 Combat Hostiles . | . . . . . . . . . . . . . . . . . . . . . . Follow-up Attacks 7 | . . . . . . . . . . . . . . . . . . . . . 7 Damage Inflicted 57353 | 177 668 2496 1889 . 8754 217 432 200 895 314 74 706 501 11593 2805 992 310 1390 5402 1563 15975 Guns 19852 | 177 247 1909 123 . 4242 69 . 107 570 217 74 103 . 4172 866 693 . 321 4207 251 1504 Cannons 17828 | . 397 508 55 . 2993 148 369 93 272 97 . 147 . 3730 966 . . 1069 1182 1270 4532 Explosions 11109 | . . 79 279 . 1513 . . . 53 . . 456 501 3209 . . . . . . 5019 Melee 8183 | . . . 1432 . . . 63 . . . . . . 482 973 299 310 . . 42 4582 Ramming 43 | . 24 . . . 6 . . . . . . . . . . . . . 13 . . Kinetic 20153 | . 407 1384 55 . 4984 217 . 200 685 217 74 103 . 976 862 19 . 1390 4901 1090 2589 Thermal 14363 | 177 237 902 123 . 2214 . . . 157 97 . 147 . 5535 856 578 . . 488 398 2454 Explosive 4145 | . . . 279 . 112 . . . . . . 456 501 2797 . . . . . . . Electromagnetic 9664 | . . 210 . . 1438 . 369 . 53 . . . . 959 114 96 . . . 75 6350 Impact 1432 | . . . 1432 . . . . . . . . . . . . . . . . . . Slashing 2725 | . . . . . . . . . . . . . . 482 973 299 . . . . 971 Piercing 3984 | . . . . . . . 63 . . . . . . . . . 310 . . . 3611 Entropic 844 | . . . . . . . . . . . . . . 844 . . . . . . . Highest Corruption 66 | . . 13 9 . 6 6 7 7 1 1 1 . 17 39 63 66 66 66 . 9 45 Average Corruption 24 | . . 10 8 . 5 4 3 7 1 1 1 . 17 17 53 51 66 66 . 6 21 Corruption Purged . | . . . . . . . . . . . . . . . . . . . . . . Corruption Blocked . | . . . . . . . . . . . . . . . . . . . . . . Effects 563 | . . 30 23 . 43 13 8 11 . 2 4 . 8 54 92 43 20 79 . 6 127 Message Errors 134 | . . 7 5 . 8 5 2 5 . 1 . . . 5 28 11 5 21 . 4 27 Matter Fused 125 | . . 9 7 . 8 1 5 3 . . 3 . 1 15 16 7 6 11 . 2 31 Heat Flow Errors 58 | . . 3 3 . 6 3 . 2 . . 1 . . 8 6 7 2 9 . . 8 Energy Discharges 69 | . . 2 3 . 8 2 . 1 . . . . 4 4 16 4 3 7 . . 15 Parts Rejected 4 | . . 1 . . 1 . . . . . . . . . . . . . . . 2 Parts Fused 2 | . . . . . . . . . . . . . . 1 . . . 1 . . . Data Loss (minor) 61 | . . 3 3 . 6 1 . . . 1 . . . 5 4 6 3 10 . . 19 Data Loss (major) 26 | . . 1 1 . . 1 . . . . . . 1 4 2 1 . 7 . . 8 Misfires 19 | . . 2 1 . . . . . . . . . 1 3 2 3 . 3 . . 4 Alerts 13 | . . . . . 1 . 1 . . . . . 1 1 1 2 . 3 . . 3 Misdirections 4 | . . . . . . . . . . . . . . 3 . . . . . . 1 Weapon Failures 48 | . . 2 . . 5 . . . . . . . . 5 17 2 1 7 . . 9 Overload Shots 1 | . . . . . . . . . . . . . . . . . . . . . 1 Overflow Damage 2898 | . . 9 598 . 173 . . . 5 . . 54 . 278 348 113 82 . . 16 1222 Projectiles 526 | . . . 17 . 138 . . . 5 . . . . 129 48 . . . . 16 173 Explosions 216 | . . 9 41 . 35 . . . . . . 54 . 20 . . . . . . 57 Melee 2156 | . . . 540 . . . . . . . . . . 129 300 113 82 . . . 992 Knockbacks 63 | . 4 6 9 . 14 . . . 3 . . . . . 1 . . 9 8 2 7 Impact 7 | . . . 7 . . . . . . . . . . . . . . . . . . Kinetic 53 | . 4 6 1 . 14 . . . 2 . . . . . 1 . . 9 8 2 6 Secondary 3 | . . . 1 . . . . . 1 . . . . . . . . . . . 1 Self-Inflicted Damage 1161 | . . 40 114 . 3 . . . . . . . . 90 . . . . . . 914 Shots 84 | . . 1 4 . 2 . . . . . . . . 3 . . . . . . 74 Rammed 6 | . 2 . . . 1 . . . 1 . . . . . . . . . 2 . . Targets Rammed 6 | . 2 . . . 1 . . . 1 . . . . . . . . . 2 . . Kicked . | . . . . . . . . . . . . . . . . . . . . . . Crushed . | . . . . . . . . . . . . . . . . . . . . . . Highest Temperature 490 | 15 324 235 277 . 477 179 152 180 72 54 202 12 . 312 490 215 122 135 193 336 140 Average Temperature 94 | 10 88 67 70 . 103 65 47 89 23 18 75 8 . 107 160 99 65 65 128 131 50 Received Heat Transfer 4537 | . 207 465 243 . 1428 36 . . 36 . . 13 . 363 636 111 . 162 147 9 681 Effects 14 | . . . . . 5 . . . . . . . . 3 6 . . . . . . Shutdowns 1 | . . . . . 1 . . . . . . . . . . . . . . . . Energy Bleed 3 | . . . . . 2 . . . . . . . . 1 . . . . . . . Interference 7 | . . . . . . . . . . . . . . 2 5 . . . . . . Matter Decay 2 | . . . . . 1 . . . . . . . . . 1 . . . . . . Short Circuit 1 | . . . . . 1 . . . . . . . . . . . . . . . . Siege Activations 5 | . . . . . . . . . . . . . . . 1 . . 1 1 1 1 Total Turns 190 | . . . . . . . . . . . . . . . 25 . . 15 44 44 62 Longest Duration 62 | . . . . . . . . . . . . . . . 25 . . 15 44 44 62 Martial Activations . | . . . . . . . . . . . . . . . . . . . . . . Shielding Activations . | . . . . . . . . . . . . . . . . . . . . . . Robots Disrupted 2 | . . . . . . . 1 . . . . . . . . . . . . . 1 Combat Hostiles 2 | . . . . . . . 1 . . . . . . . . . . . . . 1 Robots Corrupted 53 | . . . 6 . 2 . 3 . . . . . . 4 . . . . . . 38 Combat Hostiles 49 | . . . 2 . 2 . 3 . . . . . . 4 . . . . . . 38 Parts Fried 113 | . . . 7 . 13 . 2 . . . . . . 4 1 2 . . . . 84 Impact Corruptions 19 | . . . 19 . . . . . . . . . . . . . . . . . . Robots Melted 9 | . . 1 . . 4 . . . . . . . . 1 . 1 . . 1 . 1 Combat Hostiles 9 | . . 1 . . 4 . . . . . . . . 1 . 1 . . 1 . 1 Parts Melted 47 | 2 1 4 . . 12 . . . . . . . . 17 3 7 . . . . 1 Heat Transferred 18205 | 400 851 1135 296 . 3952 . . . 185 111 . 149 . 5497 903 1519 . . 546 259 2402 Parts Sabotaged 2 | . . . . . . . . . . . . . . 2 . . . . . . . Parts Stolen . | . . . . . . . . . . . . . . . . . . . . . . Parts Stripped 18 | . . . . . . . . . . . . . . . . . . . . 18 . Power Chain Reactions 10 | . . 1 . . 3 . . . . . . . . . . . . . . . 6 Alert | -11 -10 -10 -8 -8 -6 -6 -6 -5 -5 -5 -5 -5 -4 -4 -4 -4 -4 -3 -3 -3 -3 ------- Run | Yrd Mat Sub Rec Scr Fac Low Dat Pro Fac Upp Upp War Pro Fac Upp Upp Zhi Pro Res Qua Frg Maximum Alert Level 5 | . . . 1 . 4 . . . 1 . . . . 4 . . . . 2 1 5 Low Security (%) 44 | 100 100 . 97 . 24 . . . 93 . . . . 16 . . . . 39 84 23 Level 1 19 | . . . 2 . 18 . . . 6 . . . . 49 . . . . 43 15 8 Level 2 9 | . . . . . 4 . . . . . . . . 8 . . . . 16 . 21 Level 3 13 | . . . . . 41 . . . . . . . . 17 . . . . . . 7 Level 4 11 | . . . . . 11 . . . . . . . . 9 . . . . . . 32 Level 5 1 | . . . . . . . . . . . . . . . . . . . . . 7 High Security . | . . . . . . . . . . . . . . . . . . . . . . Max Security . | . . . . . . . . . . . . . . . . . . . . . . Sterilizations 1 | . . . . . . . . . . . . . . . . . . . 1 . . Peak Influence 1713 | 15 151 . 226 . 1160 . . . 351 . . . . 1261 . . . . 454 218 1713 Initial 210 | . 6 . 169 . . . . . . . . . . . . . . . 5 210 95 Average 441 | 4 44 . 113 . 631 . . . 95 . . . . 491 . . . . 236 148 759 Influence Increases 11530 | 25 463 735 253 . 1922 30 20 37 569 102 10 363 240 2344 305 60 5 260 912 288 2587 Destroy 0b10 Robot/C 7500 | . 240 620 120 . 1320 20 20 20 260 80 . 280 180 1200 240 60 . 240 620 160 1820 Destroy 0b10 Robot/NC 415 | 25 15 . 50 . 105 . . . 15 10 10 . . 65 20 . 5 . 20 . 75 Destroy Leader 1200 | . 54 30 . . 302 10 . 10 50 10 . . 20 240 30 . . 20 142 50 232 Allied During Kill 382 | . . 10 . . 55 . . 7 102 2 . 68 40 . . . . . 43 . 55 Successful Hack 86 | . 17 . . . 26 . . . 30 . . . . 13 . . . . . . . Select Force Hacks 120 | . 60 . 60 . . . . . . . . . . . . . . . . . . Disable Machine 555 | . 60 . . . 60 . . . 30 . . . . 180 . . . . . 60 165 Anti-Garrison Action 150 | . . . . . . . . . . . . . . . . . . . . . 150 Destroy Structure 535 | . 2 . 23 . 54 . . . 52 . . . . 314 . . . . 42 18 30 Lose Combat Pursuer 315 | . 15 75 . . . . . . 30 . . 15 . 60 15 . . . 45 . 60 Miscellaneous 272 | . . . . . . . . . . . . . . 272 . . . . . . . Influence Decreases 9865 | 15 342 513 606 . 774 760 438 37 226 430 25 198 405 1089 1211 409 5 252 546 492 1092 Entered New Map 2165 | . 4 63 184 . . 426 418 . . 127 4 . 165 . 465 67 . . 3 164 75 Time Decay 5877 | 15 338 260 352 . 514 334 20 37 186 270 21 158 240 599 506 312 5 242 453 318 697 Lost Part 1280 | . . 110 70 . 240 . . . . . . . . 300 240 30 . 10 10 10 260 Lost Ally 393 | . . 80 . . 20 . . . 40 33 . 40 . 40 . . . . 80 . 60 Purge Threat 150 | . . . . . . . . . . . . . . 150 . . . . . . . Squads Dispatched 71 | . 6 . 1 . 25 . . . 4 . . . . 13 . . . . 4 2 16 Investigation 19 | . 3 . 1 . 9 . . . 3 . . . . 2 . . . . 1 . . Extermination 15 | . . . . . 4 . . . . . . . . 4 . . . . 1 1 5 Reinforcement 17 | . 3 . . . 8 . . . 1 . . . . 3 . . . . 1 . 1 Assault 10 | . . . . . 1 . . . . . . . . 2 . . . . . . 7 Garrison 4 | . . . . . 3 . . . . . . . . . . . . . . . 1 Intercept 6 | . . . . . . . . . . . . . . 2 . . . . 1 1 2 Searches Triggered . | . . . . . . . . . . . . . . . . . . . . . . Construction Impeded 6 | . . . . . 3 . . . 1 . . . . 1 . . . . 1 . . Haulers Reinforced 1 | . . . . . 1 . . . . . . . . . . . . . . . . Active Scanning Responses . | . . . . . . . . . . . . . . . . . . . . . . Cargo Convoy Interrupts 1 | . . . . . 1 . . . . . . . . . . . . . . . . Stealth | -11 -10 -10 -8 -8 -6 -6 -6 -5 -5 -5 -5 -5 -4 -4 -4 -4 -4 -3 -3 -3 -3 --------- Run | Yrd Mat Sub Rec Scr Fac Low Dat Pro Fac Upp Upp War Pro Fac Upp Upp Zhi Pro Res Qua Frg Distress Signals 12 | . 1 . . . 2 . . . . . . 1 . 3 . . . . 4 . 1 Communications Jammed 35 | . . . . . . . . . . . . . . . . . . . . 35 . Distress Signals 35 | . . . . . . . . . . . . . . . . . . . . 35 . Times Spotted 487 | . 17 55 6 . 80 1 4 1 18 5 . 25 6 79 13 4 . 10 33 10 120 Peak Tracking Total 14 | . 3 6 3 . 14 1 2 1 6 5 . 7 5 8 4 3 . 3 4 5 9 Tactical Retreats 17 | . 1 3 . . 2 . . . 2 . . 1 . 2 1 . . . 1 . 4 ECM-based Alert Blocks 4 | . . . . . 4 . . . . . . . . . . . . . . . . Traps | -11 -10 -10 -8 -8 -6 -6 -6 -5 -5 -5 -5 -5 -4 -4 -4 -4 -4 -3 -3 -3 -3 ------- Run | Yrd Mat Sub Rec Scr Fac Low Dat Pro Fac Upp Upp War Pro Fac Upp Upp Zhi Pro Res Qua Frg Traps Triggered 25 | . 1 3 . . 5 . . . . . . . . 2 . . . . 3 . 11 Indirectly 10 | . . . . . . . . . . . . . . . . . . . . . 10 Trap Hack Attempts . | . . . . . . . . . . . . . . . . . . . . . . Triggered . | . . . . . . . . . . . . . . . . . . . . . . Disarmed 6 | . . . . . . . . . . . . . . 6 . . . . . . . Reprogrammed . | . . . . . . . . . . . . . . . . . . . . . . Reused . | . . . . . . . . . . . . . . . . . . . . . . Traps Extracted . | . . . . . . . . . . . . . . . . . . . . . . Installed . | . . . . . . . . . . . . . . . . . . . . . . Triggered . | . . . . . . . . . . . . . . . . . . . . . . Machines | -11 -10 -10 -8 -8 -6 -6 -6 -5 -5 -5 -5 -5 -4 -4 -4 -4 -4 -3 -3 -3 -3 ---------- Run | Yrd Mat Sub Rec Scr Fac Low Dat Pro Fac Upp Upp War Pro Fac Upp Upp Zhi Pro Res Qua Frg Machines Disabled 49 | . 4 . . . 4 . . . 2 . . 1 . 12 . 1 1 . 2 4 18 Max in Single Turn 4 | . 1 . . . 1 . . . 2 . . 1 . 4 . 1 1 . 1 1 1 Garrison Access 1 | . . . . . . . . . . . . . . . . . . . . . 1 Machines Repaired . | . . . . . . . . . . . . . . . . . . . . . . Machines Dismantled 2 | . . . . . . . . . . . . 1 . 1 . . . . . . . Machines Sabotaged . | . . . . . . . . . . . . . . . . . . . . . . Overloaded Fab Kills . | . . . . . . . . . . . . . . . . . . . . . . Hacking | -11 -10 -10 -8 -8 -6 -6 -6 -5 -5 -5 -5 -5 -4 -4 -4 -4 -4 -3 -3 -3 -3 --------- Run | Yrd Mat Sub Rec Scr Fac Low Dat Pro Fac Upp Upp War Pro Fac Upp Upp Zhi Pro Res Qua Frg Machines Accessed 68 | . 7 3 3 1 14 1 4 . 5 . . 3 . 12 1 1 4 . 4 2 3 Terminals 26 | . 4 . 1 . 8 . . . 2 . . . . 6 1 1 . . 1 1 1 Fabricators 6 | . . . . . 2 . . . . . . . . 3 . . . . 1 . . Repair Stations 3 | . 1 . . . . . . . . . . . . 2 . . . . . . . Recycling Units 11 | . 2 . 2 . 3 . . . 3 . . . . 1 . . . . . . . Scanalyzers 4 | . . . . . 1 . . . . . . . . . . . . . 2 . 1 Garrison Access 2 | . . . . . . . . . . . . . . . . . . . . 1 1 Total Hacks 174 | . 21 7 6 4 31 1 27 . 14 . . 6 . 27 1 1 12 . 9 4 3 Successful 105 | . 12 7 2 4 12 1 27 . 5 . . 6 . 14 1 1 12 . . . 1 Failed 69 | . 9 . 4 . 19 . . . 9 . . . . 13 . . . . 9 4 2 Catastrophic 19 | . 1 . 2 . 8 . . . 2 . . . . 4 . . . . 1 . 1 Database Lockouts . | . . . . . . . . . . . . . . . . . . . . . . Manual 40 | . 11 . 2 . 10 . . . 6 . . . . 11 . . . . . . . Terminals 59 | . 17 . 4 . 14 . . . 5 . . . . 12 1 1 . . 2 2 1 Fabricators 17 | . . . . . 6 . . . . . . . . 7 . . . . 4 . . Repair Stations 9 | . 2 . . . . . . . . . . . . 7 . . . . . . . Recycling Units 23 | . 2 . 2 . 9 . . . 9 . . . . 1 . . . . . . . Scanalyzers 6 | . . . . . 2 . . . . . . . . . . . . . 3 . 1 Garrison Access 3 | . . . . . . . . . . . . . . . . . . . . 2 1 Terminal Hacks 77 | . 6 7 . 4 4 1 27 . 3 . . 6 . 4 1 1 12 . . . 1 Record 32 | . . 5 . 4 . . 11 . . . . 5 . . 1 1 5 . . . . Part Schematic 11 | . . . . . . . 8 . . . . . . . . . 3 . . . . Robot Schematic 6 | . 1 . . . . . 5 . . . . . . . . . . . . . . Prototype ID Bank 10 | . 1 . . . . . 3 . 1 . . . . 1 . . 4 . . . . Open Door 3 | . . 1 . . . 1 . . . . . 1 . . . . . . . . . Branch Access Points 3 | . . . . . 1 . . . 1 . . . . 1 . . . . . . . Unreport Threat 1 | . . . . . . . . . . . . . . 1 . . . . . . . Locate Traps 2 | . 1 . . . 1 . . . . . . . . . . . . . . . . Disarm Traps 1 | . . . . . . . . . . . . . . 1 . . . . . . . Hauler Manifests 3 | . 1 . . . 1 . . . 1 . . . . . . . . . . . . Registered Components 1 | . 1 . . . . . . . . . . . . . . . . . . . . Zone Layout 2 | . 1 . . . 1 . . . . . . . . . . . . . . . . Proto ID Catalog 1 | . . . . . . . . . . . . . . . . . . . . . 1 Release Object 1 | . . 1 . . . . . . . . . . . . . . . . . . . Fabricator Hacks 7 | . . . . . 2 . . . . . . . . 5 . . . . . . . Load Schematic 5 | . . . . . 2 . . . . . . . . 3 . . . . . . . Build 2 | . . . . . . . . . . . . . . 2 . . . . . . . Repair Station Hacks 3 | . 2 . . . . . . . . . . . . 1 . . . . . . . Scan Component 2 | . 1 . . . . . . . . . . . . 1 . . . . . . . Repair 1 | . 1 . . . . . . . . . . . . . . . . . . . . Recycling Unit Hacks 4 | . . . . . 2 . . . 1 . . . . 1 . . . . . . . Retrieve Components 4 | . . . . . 2 . . . 1 . . . . 1 . . . . . . . Scanalyzer . | . . . . . . . . . . . . . . . . . . . . . . Garrison Access Hacks . | . . . . . . . . . . . . . . . . . . . . . . Unauthorized Hacks 14 | . 4 . 2 . 4 . . . 1 . . . . 3 . . . . . . . Terminals 3 | . 2 . . . . . . . . . . . . 1 . . . . . . . Botnet 1 | . . . . . . . . . . . . . . 1 . . . . . . . Operators 1 | . 1 . . . . . . . . . . . . . . . . . . . . Skim 1 | . 1 . . . . . . . . . . . . . . . . . . . . Fabricators 2 | . . . . . 1 . . . . . . . . 1 . . . . . . . Recompile 2 | . . . . . 1 . . . . . . . . 1 . . . . . . . Repair Stations 1 | . . . . . . . . . . . . . . 1 . . . . . . . Patch 1 | . . . . . . . . . . . . . . 1 . . . . . . . Recycling Units 8 | . 2 . 2 . 3 . . . 1 . . . . . . . . . . . . Tunnel 4 | . 2 . 2 . . . . . . . . . . . . . . . . . . Fedlink 4 | . . . . . 3 . . . 1 . . . . . . . . . . . . Scanalyzers . | . . . . . . . . . . . . . . . . . . . . . . Garrison Access . | . . . . . . . . . . . . . . . . . . . . . . Data Cores Recovered . | . . . . . . . . . . . . . . . . . . . . . . Used . | . . . . . . . . . . . . . . . . . . . . . . Hacking Detections 41 | . 5 . 1 . 12 . . . 5 . . . . 10 . . . . 4 2 2 Full Trace Events 5 | . . . . . 1 . . . 2 . . . . . . . . . 2 . . Feedback Events 1 | . . . . . . . . . 1 . . . . . . . . . . . . Corruption 1 | . . . . . . . . . 1 . . . . . . . . . . . . Feedback Blocked . | . . . . . . . . . . . . . . . . . . . . . . Robot Schematics Acquired 10 | . 1 . . . . . 5 . . . . . . . . . . . . . 4 Robots Built . | . . . . . . . . . . . . . . . . . . . . . . Authchips . | . . . . . . . . . . . . . . . . . . . . . . Time . | . . . . . . . . . . . . . . . . . . . . . . Total Robot Build Rating . | . . . . . . . . . . . . . . . . . . . . . . Part Schematics Acquired 76 | . . . . 6 23 6 8 2 2 2 2 10 1 2 . . 4 . . . 8 Parts Built 1 | . . . . . . . . . . . . . . 1 . . . . . . . Authchips 2 | . . . . . . . . . . . . . . 2 . . . . . . . Time 84 | . . . . . . . . . . . . . . 84 . . . . . . . Total Part Build Rating 4 | . . . . . . . . . . . . . . 4 . . . . . . . Part Studies Acquired . | . . . . . . . . . . . . . . . . . . . . . . Parts Repaired 1 | . 1 . . . . . . . . . . . . . . . . . . . . Time 26 | . 26 . . . . . . . . . . . . . . . . . . . . Parts Recycled . | . . . . . . . . . . . . . . . . . . . . . . Recycled Matter . | . . . . . . . . . . . . . . . . . . . . . . Retrieved Matter . | . . . . . . . . . . . . . . . . . . . . . . Retrieved Components 10 | . . . . . 3 . . . . . . . . 7 . . . . . . . Parts Scanalyzed . | . . . . . . . . . . . . . . . . . . . . . . Part Schematics Acquired . | . . . . . . . . . . . . . . . . . . . . . . Parts Damaged . | . . . . . . . . . . . . . . . . . . . . . . Bothacking | -11 -10 -10 -8 -8 -6 -6 -6 -5 -5 -5 -5 -5 -4 -4 -4 -4 -4 -3 -3 -3 -3 ------------ Run | Yrd Mat Sub Rec Scr Fac Low Dat Pro Fac Upp Upp War Pro Fac Upp Upp Zhi Pro Res Qua Frg Used RIF Installer . | . . . . . . . . . . . . . . . . . . . . . . Robots Hacked 1 | . . . . . . . . . . . . . . 1 . . . . . . . Non-combat 1 | . . . . . . . . . . . . . . 1 . . . . . . . Combat . | . . . . . . . . . . . . . . . . . . . . . . Robot Hacks Applied 1 | . . . . . . . . . . . . . . 1 . . . . . . . find_chute 1 | . . . . . . . . . . . . . . 1 . . . . . . . Relay Couplers Released . | . . . . . . . . . . . . . . . . . . . . . . Fabnet Peak Effective % . | . . . . . . . . . . . . . . . . . . . . . . Robots Rewired 6 | . . . . . . . 1 . . . . 5 . . . . . . . . . Allies Hacked 1 | . . . . . . . . . . . . . . . . . . . . . 1 Hacks Repelled . | . . . . . . . . . . . . . . . . . . . . . . Allies | -11 -10 -10 -8 -8 -6 -6 -6 -5 -5 -5 -5 -5 -4 -4 -4 -4 -4 -3 -3 -3 -3 -------- Run | Yrd Mat Sub Rec Scr Fac Low Dat Pro Fac Upp Upp War Pro Fac Upp Upp Zhi Pro Res Qua Frg Total Allies 25 | . . 5 . . 2 . 1 . 5 . . 5 . . . . . . 4 . 3 Largest Group 5 | . . 4 . . 1 . 1 1 5 4 . 5 3 3 . . . . 4 . 1 Highest-Rated Group 295 | . . 21 . . 142 . 96 96 295 236 . 273 156 156 . . . . 231 . 219 Highest-Rated Ally 219 | . . 6 . . 142 . 96 96 96 59 . 68 64 64 . . . . 60 . 219 Initial UFD Resources 59 | . . . . . 24 40 40 43 43 53 53 53 57 57 57 57 57 59 59 59 59 Total Orders 2 | . . . . . . . . . . . . 2 . . . . . . . . . FOLLOW 1 | . . . . . . . . . . . . 1 . . . . . . . . . GUARD 1 | . . . . . . . . . . . . 1 . . . . . . . . . Ally Attacks 237 | . . 25 . . 31 . . 2 35 3 . 61 2 6 . . . . 43 . 29 Total Damage 9065 | . . 138 . . 1499 . . . 885 78 . 2219 89 243 . . . . 956 . 2958 Kills 41 | . . 1 . . 12 . . . 9 . . 13 2 . . . . . 1 . 3 Allies Corrupted 4 | . . . . . . . . . . . . . . . . . . . 2 . 2 Allies Melted 1 | . . . . . . . . . . . . 1 . . . . . . . . . X0-1V1 Amusement Gains 469 | . 18 20 10 . 97 . 60 . . . . 90 . 45 . . 25 . 10 . 94 Good Acts 155 | . . 44 11 . 15 4 . 5 4 1 5 2 7 12 4 3 . 4 12 1 21 Bad Acts 113 | . . 40 11 . 9 4 . 2 2 . . 2 4 12 6 . . 2 3 4 12 Intel | -11 -10 -10 -8 -8 -6 -6 -6 -5 -5 -5 -5 -5 -4 -4 -4 -4 -4 -3 -3 -3 -3 ------- Run | Yrd Mat Sub Rec Scr Fac Low Dat Pro Fac Upp Upp War Pro Fac Upp Upp Zhi Pro Res Qua Frg Active Infowar (turns) 14053 | 46 1023 20 . . 921 . . 773 490 589 529 1578 858 1437 1302 794 341 1261 1276 717 98 Optics 6390 | . . 20 . . 921 . . . . . . . . . 1302 794 341 1261 1276 475 . IFF 10288 | . . . . . . . . 773 490 589 529 1578 858 1437 410 794 340 1261 704 525 . Terrain 53 | 32 21 . . . . . . . . . . . . . . . . . . . . Structural 5 | . . . . . . . . . . . . . . . 3 . . 2 . . . Seismic 1069 | 46 1023 . . . . . . . . . . . . . . . . . . . . Jamming 766 | . . . . . . . . . . . . . . . . . . . . 668 98 ECM 320 | . . . . . 320 . . . . . . . . . . . . . . . . Robot Analysis Total 154 | . . . . . . . 154 . . . . . . . . . . . . . . Derelict Logs Recovered 8 | . . 1 . . . . . 1 . . 1 . 1 . 2 2 . . . . . Drone Launches . | . . . . . . . . . . . . . . . . . . . . . . Drone Recoveries . | . . . . . . . . . . . . . . . . . . . . . . Exploration | -11 -10 -10 -8 -8 -6 -6 -6 -5 -5 -5 -5 -5 -4 -4 -4 -4 -4 -3 -3 -3 -3 ------------- Run | Yrd Mat Sub Rec Scr Fac Low Dat Pro Fac Upp Upp War Pro Fac Upp Upp Zhi Pro Res Qua Frg Turns Passed 32047 | 96 1473 4348 840 5327 2695 745 484 1342 490 589 529 1578 858 1970 1367 794 341 1261 1276 717 2927 Spaces Moved 14377 | 95 634 1742 278 2014 1285 504 184 695 241 378 348 716 568 803 710 311 181 580 549 382 1179 Core 273 | 95 137 2 39 . . . . . . . . . . . . . . . . . . Treads 6251 | . 497 1096 . 1351 347 . 26 . . . . . . 18 . 311 181 580 549 382 913 Legs 397 | . . 131 . . . . . . . . . . . . . . . . . . 266 Wheels 7455 | . . 513 238 663 938 504 158 695 241 378 348 716 568 785 710 . . . . . . Hover . | . . . . . . . . . . . . . . . . . . . . . . Flight 1 | . . . 1 . . . . . . . . . . . . . . . . . . Fastest Speed 50 | 50 50 120 115 115 100 140 140 135 135 150 150 135 131 123 130 162 162 161 150 150 110 Average Speed 174 | 50 198 219 243 198 143 140 187 187 145 150 150 149 146 147 158 230 164 189 157 150 161 Slowest Speed 995 | 50 240 900 995 305 230 140 410 290 175 150 150 150 150 317 220 240 242 245 238 150 250 Overloaded Moves . | . . . . . . . . . . . . . . . . . . . . . . Propulsion Burnouts . | . . . . . . . . . . . . . . . . . . . . . . Robots Hopped . | . . . . . . . . . . . . . . . . . . . . . . Potential Cave-ins 12 | . . 2 . . . . . . . . . . . . . . . . . . 10 Cave-ins Triggered 1 | . . . . . . . . . . . . . . . . . . . . . 1 Exploration Rate (%) 58 | 4 95 79 49 93 39 52 80 85 9 55 69 88 82 23 90 58 61 72 23 46 30 Regions Visited 21 Branch Regions 16 Pre-discovered Areas 33 | . 2 1 2 . 1 . 24 . . . . . . . . . 3 . . . . Known Exits Taken 9 | . . 1 1 . 1 . . 1 1 . . . 1 1 . . . . 1 1 . Unknown Exits Taken 12 | 1 1 . . 1 . 1 1 . . 1 1 1 . . 1 1 1 1 . . . Scrap Searched 42 | . . 8 . 7 . 6 . 4 . 2 3 . 2 . 5 2 . 3 . . . Spaces Dug 56 | . . 6 . . 6 3 . . 10 1 . . . 9 5 . . 1 1 5 9 Terrain Destroyed 432 | . . 12 23 . 41 3 . . 19 5 1 24 47 171 19 . 1 19 17 11 19 Melee 8 | . . 6 . . . . . . . . . . . 2 . . . . . . . Projectile 185 | . . . . . 20 3 . . 19 5 1 3 1 47 19 . 1 19 17 11 19 AOE 239 | . . 6 23 . 21 . . . . . . 21 46 122 . . . . . . . Terrain Rammed . | . . . . . . . . . . . . . . . . . . . . . . Walls Destroyed . | . . . . . . . . . . . . . . . . . . . . . . Machines Disabled . | . . . . . . . . . . . . . . . . . . . . . . Actions | -11 -10 -10 -8 -8 -6 -6 -6 -5 -5 -5 -5 -5 -4 -4 -4 -4 -4 -3 -3 -3 -3 --------- Run | Yrd Mat Sub Rec Scr Fac Low Dat Pro Fac Upp Upp War Pro Fac Upp Upp Zhi Pro Res Qua Frg Total 19364 | 123 779 2060 377 3351 1777 534 276 728 322 387 354 1201 587 1260 853 352 219 668 805 471 1880 Wait 2363 | 1 52 38 31 1285 52 . 18 3 26 2 . 391 4 95 12 6 . 22 96 7 222 Move 14355 | 94 633 1741 277 2013 1284 503 183 694 240 377 347 715 567 802 709 310 180 579 548 381 1178 Hop . | . . . . . . . . . . . . . . . . . . . . . . Pick Up 354 | 4 26 26 10 33 75 6 8 8 5 . 3 7 4 41 20 7 9 6 12 8 36 Fast Attach 139 | 6 1 11 2 2 17 2 2 2 1 . . 1 . 22 11 2 2 3 19 9 24 Attach 155 | . 5 7 6 1 29 1 7 1 2 . . 1 1 35 18 2 3 6 4 . 26 Detach 38 | 1 1 . 2 . 4 . 2 . . . . . . 7 3 . 1 2 2 3 10 Swap 276 | . 8 31 1 1 63 8 8 7 9 . . 8 4 41 9 4 5 6 22 10 31 Drop 320 | . 11 42 7 16 58 8 6 10 5 . 3 8 3 25 5 5 11 9 33 18 37 Fire 1052 | 17 40 155 10 . 175 6 18 3 33 8 1 6 4 170 55 12 3 35 67 33 201 Melee 191 | . . 6 28 . . . 22 . . . . . . 8 11 4 5 . . 2 105 Ram . | . . . . . . . . . . . . . . . . . . . . . . Kick . | . . . . . . . . . . . . . . . . . . . . . . Crush 6 | . 2 . . . 1 . . . 1 . . . . . . . . . 2 . . Escape Stasis 39 | . . 3 . . 18 . . . . . . . . 8 . . . . . . 10 Rewire 62 | . . . 3 . 1 . 2 . . . . 56 . . . . . . . . . Trap . | . . . . . . . . . . . . . . . . . . . . . . Miscellaneous 14 | . . . . . . . . . . . . 8 . 6 . . . . . . . Route ------- -11/Scrapyard -10/Materials (discovered 5 exits: [*Mat x2] / [*Min x2] / *Sub) -10/Subcaves (discovered 4 exits: [*Mat x2] / *Rec / *Scr) -8/Recycling -8/Scraptown (discovered 2 exits: *Fac x2) -6/Factory (discovered 7 exits: *Fac x3 / *Low x2 / Ext x2) -6/Lower Caves -6/Data Miner -5/Proximity Caves -5/Factory (discovered 2 exits: *Upp x2) -5/Upper Caves -5/Upper Caves (discovered 2 exits: *Fac / *War) -5/Warlord -4/Proximity Caves -4/Factory (discovered 3 exits: *Res / *Upp x2) -4/Upper Caves -4/Upper Caves -4/Zhirov -3/Proximity Caves -3/Research (discovered 4 exits: *Res / Arm / *Qua x2) -3/Quarantine (discovered 2 exits: [*Sec] / *Frg) -3/Protoforge (discovered 1 exit: Res) History --------- Turn | Location | Event 5 | -11/Scrapyard | Discovered new exit (range 15) 97 | -11/Scrapyard | Entered Materials 98 | -10/Materials | Met a group of wandering Federalists 198 | -10/Materials | Discovered new exit (range 5) 308 | -10/Materials | Build established: Mutant 435 | -10/Materials | Discovered new exit (range 8) 979 | -10/Materials | Repaired Lgt. Cannon 1280 | -10/Materials | Discovered new exit (range 6) 1547 | -10/Materials | Discovered new exit (range 12) 1551 | -10/Materials | Discovered new exit (range 8) 1568 | -10/Materials | Prayed at D.C.S.S. Altar Unit 1570 | -10/Materials | Entered Subcaves 1571 | -10/Subcaves | Continued accompanying wandering Federalists (5) 1571 | -10/Subcaves | Approached by a straggling Scientist 1851 | -10/Subcaves | Found SUBCON Basin 2000 | -10/Subcaves | Core integrity fell below 50% 2178 | -10/Subcaves | Scientist uncovered a shortcut to Scraptown 2574 | -10/Subcaves | Discovered new exit (range 14) 2790 | -10/Subcaves | Core integrity fell below 20% 3048 | -10/Subcaves | Visited Clippyterm 3055 | -10/Subcaves | Learned Factory garrison access intel 3236 | -10/Subcaves | Shifting Twisted Machinery released Battle Rifle 3326 | -10/Subcaves | Discovered new exit (range 10) 3593 | -10/Subcaves | Core integrity permanently improved by X0-1V1 (+200) 3718 | -10/Subcaves | X0-1V1 sent hostile S-10 Pest (x4) 4119 | -10/Subcaves | X0-1V1 mutated your Weapon slot to Propulsion slot 4122 | -10/Subcaves | Lost 3 parts (2n1w) 4128 | -10/Subcaves | Core integrity restored by X0-1V1 (+81) 4134 | -10/Subcaves | X0-1V1 sent you into danger 4154 | -10/Subcaves | X0-1V1 sent hostile S-10 Pest (x5) 4157 | -10/Subcaves | X0-1V1 whisked you away to safety 4183 | -10/Subcaves | X0-1V1 activates XOMVISION 4185 | -10/Subcaves | Identified exit to Recycling 4185 | -10/Subcaves | X0-1V1 revealed exit location to -8/Recycling 4189 | -10/Subcaves | Core integrity restored by X0-1V1 (+67) 4257 | -10/Subcaves | X0-1V1 sent hostile S-10 Pest (x4) 4284 | -10/Subcaves | X0-1V1 sent you into danger 4324 | -10/Subcaves | System corruption reached 10% 4403 | -10/Subcaves | X0-1V1 sent hostile G-34 Mercenary (x4) 4519 | -10/Subcaves | Lost 4 parts (3n1u) 4618 | -10/Subcaves | X0-1V1 activates XOMVISION 4689 | -10/Subcaves | Learned location of Zion (-7) 4689 | -10/Subcaves | Met a Zionite searching for "candidates" 5231 | -10/Subcaves | X0-1V1 activates XOMVISION 5250 | -10/Subcaves | Core integrity restored by X0-1V1 (+94) 5277 | -10/Subcaves | X0-1V1 mutated your Propulsion slot to Power slot 5300 | -10/Subcaves | X0-1V1 sent hostile S-10 Pest (x4) 5334 | -10/Subcaves | Core integrity restored by X0-1V1 (+108) 5338 | -10/Subcaves | X0-1V1 tapped a No Entrance sign 5353 | -10/Subcaves | X0-1V1 mutated your Propulsion slot to Weapon slot 5370 | -10/Subcaves | X0-1V1 sent hostile G-34 Mercenary (x5) 5375 | -10/Subcaves | X0-1V1 sent allied S-10 Pest (x4) 5488 | -10/Subcaves | Core integrity restored by X0-1V1 (+126) 5628 | -10/Subcaves | X0-1V1 activates XOMVISION 5902 | -10/Subcaves | X0-1V1 turns hostiles against one another 5918 | -10/Subcaves | Entered Recycling 5919 | -8/Recycling | Joined Warlord attack on 0b10 via Recycling 5922 | -8/Recycling | Identified exit to Scraptown 5922 | -8/Recycling | X0-1V1 revealed exit location to -8/Scraptown 5926 | -8/Recycling | Propulsion slot count permanently improved by X0-1V1 (+1) 5940 | -8/Recycling | Lost 4 allies 6039 | -8/Recycling | Forcibly received Sfc. Transmogifier from X0-1V1 6044 | -8/Recycling | X0-1V1 sent you into danger 6138 | -8/Recycling | X0-1V1 sent you into danger 6202 | -8/Recycling | Lost 5 parts (1p2n2w) 6665 | -8/Recycling | Scanned before Scraplab entrance 6735 | -8/Recycling | Entered Scraplab 6758 | -8/Recycling | Entered Scraptown 6758 | -8/Scraptown | System corruption cleaned by C-Scrubber 6904 | -8/Scraptown | Heard Great Nut preacher, LISTEN AND RECITE! 6983 | -8/Scraptown | Discovered new exit (range 5) 7086 | -8/Scraptown | Visited Bundlers 7178 | -8/Scraptown | Visited Symbiants 7216 | -8/Scraptown | Visited The Evicted 7227 | -8/Scraptown | Visited Awakened 7320 | -8/Scraptown | Visited Fellowship of the Rings 7343 | -8/Scraptown | Visited SPCMW 7414 | -8/Scraptown | Visited Comm Corps 7741 | -8/Scraptown | Visited UFD Registry 7772 | -8/Scraptown | Registered with UFD as "Quantumroller" 7863 | -8/Scraptown | Visited Observation Area 7987 | -8/Scraptown | Visited Chapter 10 8025 | -8/Scraptown | Visited Infowarlord's Domain 8045 | -8/Scraptown | Visited Scrapoid Research Area 8108 | -8/Scraptown | Visited Curators Association 8259 | -8/Scraptown | Delivered Scrap Shield to a Scientist 8464 | -8/Scraptown | Visited Research Penetration Think Tank 8518 | -8/Scraptown | Visited Scrap Suit Storage 8549 | -8/Scraptown | Visited A0-MCA Data Center 9789 | -8/Scraptown | Given a C+ rating by A0-MCA 9794 | -8/Scraptown | Found A0-MCA's Component Scanner 10993 | -8/Scraptown | Visited Supply Room 11391 | -8/Scraptown | Visited Supply Room 11689 | -8/Scraptown | Tech Extrapolator generated special schematic: Vmp. Humpback 11761 | -8/Scraptown | Tech Extrapolator generated special schematic: Machine Rigger 11962 | -8/Scraptown | Met Optimus 11962 | -8/Scraptown | Accepted into 0bPrime 12081 | -8/Scraptown | Discovered new exit (range 3) 12085 | -8/Scraptown | Entered Factory 12085 | -6/Factory | Evolved 8 slots: Propulsion x2, Utility x5, Weapon x1 12086 | -6/Factory | Loaded intel: 4 garrison access locations 12177 | -6/Factory | Tech Extrapolator generated special schematic: Deep Structural Scanner 12305 | -6/Factory | X0-1V1 foreshadows a heat wave 12406 | -6/Factory | Build established: Tank 12508 | -6/Factory | Ambient heat levels rising (+10) 12638 | -6/Factory | X0-1V1 vaporized surrounding terrain (radius 15) 12645 | -6/Factory | Identified exit to Factory 12645 | -6/Factory | X0-1V1 revealed exit location to -5/Factory 12656 | -6/Factory | Discovered new exit (range 14) 12668 | -6/Factory | Ambient heat levels rising (+10) 12687 | -6/Factory | X0-1V1 sent allied H-71 Marshal (x1) 12732 | -6/Factory | Garrison activated, responded to threat 12848 | -6/Factory | Tech Extrapolator generated special schematic: Active Sensor Spoofer 12901 | -6/Factory | Loaded intel: 8 recycling unit locations 12927 | -6/Factory | Build established: Gunner 12928 | -6/Factory | Ambient heat levels falling (-10) 12971 | -6/Factory | Tech Extrapolator generated special schematic: Vmp. Brace Plating 12976 | -6/Factory | Lost 5 parts (1p4n) 13034 | -6/Factory | X0-1V1 activates XOMVISION 13073 | -6/Factory | Learned location of Protoforge (-3) 13149 | -6/Factory | Ambient heat levels falling (-10) 13255 | -6/Factory | Discovered exit to Factory (range 14) 13260 | -6/Factory | Build established: Scavenger-Gunner 13289 | -6/Factory | X0-1V1 redirected Transport squads to designated parking area 13322 | -6/Factory | Cargo convoy interrupted 13338 | -6/Factory | X0-1V1 sent allied Knight (x1) 13380 | -6/Factory | Lost 5 parts (2n3u) 13385 | -6/Factory | Destroyed 10 combat bots 13741 | -6/Factory | Spotted B-75 Beast 13766 | -6/Factory | Discovered exit to Factory (range 16) 13921 | -6/Factory | Core integrity restored by X0-1V1 (+210) 14022 | -6/Factory | Energy generation permanently improved by X0-1V1 (+15; -150 max core) 14149 | -6/Factory | Build established: Scavenger-Tank 14348 | -6/Factory | Identified exit to Lower Caves 14348 | -6/Factory | Identified exit to Extension 14439 | -6/Factory | Found Launcher Loader 14535 | -6/Factory | First assault squad dispatched 14780 | -6/Factory | Entered Lower Caves 14782 | -6/Lower Caves | UFD Scientist delivered a prototype 14787 | -6/Lower Caves | Found Prototype Protection 14787 | -6/Lower Caves | Identified Enh. Scrap Shield 14974 | -6/Lower Caves | Spotted B-75 Beast 14974 | -6/Lower Caves | X0-1V1 sent you into danger 14981 | -6/Lower Caves | Destroyed B-75 Beast 14993 | -6/Lower Caves | Build established: Scavenger-Gunner 15137 | -6/Lower Caves | X0-1V1 activates XOMVISION 15269 | -6/Lower Caves | A Derelict revealed a hidden shortcut to meet someone special 15278 | -6/Lower Caves | Encountered a Warlord checkpoint 15409 | -6/Lower Caves | X0-1V1 mutated your Utility slot to Propulsion slot 15525 | -6/Lower Caves | Entered Data Miner 15528 | -6/Data Miner | Discovered new exit (range 7) 15555 | -6/Data Miner | Met Data Miner 15579 | -6/Data Miner | Learned location of Section 7 (-3) 15579 | -6/Data Miner | Acquired the access code to Warlord's prototype stash 15604 | -6/Data Miner | Received God Mode back door access code from Data Miner 15621 | -6/Data Miner | Destroyed Data Miner 15623 | -6/Data Miner | Interfaced with the Data Conduit 15861 | -6/Data Miner | Found Corrupted Exp. Thermal Shield 15929 | -6/Data Miner | Found Prototype Hackware 15932 | -6/Data Miner | Found Prototype Hackware 15990 | -6/Data Miner | Build established: Scavenger-Tank 16009 | -6/Data Miner | Entered Proximity Caves 16009 | -5/Proximity Caves | Accompanied by 1 ally 16371 | -5/Proximity Caves | X0-1V1 mutated your Propulsion slot to Utility slot 16747 | -5/Proximity Caves | Spotted B-75 Beast 16764 | -5/Proximity Caves | Destroyed B-75 Beast 16869 | -5/Proximity Caves | Learned Factory security intel 17205 | -5/Proximity Caves | Discovered exit to Factory (range 13) 17283 | -5/Proximity Caves | Tech Extrapolator generated special schematic: Vmp. Broadsword 17351 | -5/Proximity Caves | Entered Factory 17351 | -5/Factory | Accompanied by 1 ally 17351 | -5/Factory | Evolved 2 slots: Utility x2 17353 | -5/Factory | Loaded intel: 288 machine locations 17410 | -5/Factory | X0-1V1 announced a LAN party 17434 | -5/Factory | Loaded intel: 8 recycling unit locations 17488 | -5/Factory | X0-1V1 activates XOMVISION 17500 | -5/Factory | Identified exit to Upper Caves 17784 | -5/Factory | X0-1V1 sent allied Scrapper (x5) 17807 | -5/Factory | Tech Extrapolator generated special schematic: Energy Deflector 17841 | -5/Factory | Entered Upper Caves 17841 | -5/Upper Caves | Accompanied by 4 allies 18232 | -5/Upper Caves | Discovered new exit (range 9) 18268 | -5/Upper Caves | Lost 4 allies 18430 | -5/Upper Caves | Entered another Upper Caves area 18431 | -5/Upper Caves | Encountered a Warlord checkpoint 18538 | -5/Upper Caves | Discovered new exit (range 12) 18546 | -5/Upper Caves | Tech Extrapolator generated special schematic: Heat Bomb Trap 18771 | -5/Upper Caves | Learned Factory emergency access door positions 18911 | -5/Upper Caves | Discovered new exit (range 10) 18939 | -5/Upper Caves | X0-1V1 activates XOMVISION 18959 | -5/Upper Caves | Entered Warlord 19260 | -5/Warlord | Found Vortex Chain Reactor 19275 | -5/Warlord | Found Prototype Hackware 19279 | -5/Warlord | Found Exp. Core Analyzer 19282 | -5/Warlord | Found Exp. Focal Shield 19391 | -5/Warlord | Received a Watcher feed algorithm from an ecstatic Tinkerer 19734 | -5/Warlord | Warlord's base attacked by MAIN.C 19751 | -5/Warlord | Found Prototype Energy Gun 19751 | -5/Warlord | Identified Vortex Rifle 19759 | -5/Warlord | Found Vortex Rifle 19854 | -5/Warlord | Rebuked by Warlord 19997 | -5/Warlord | X0-1V1 sent you into danger 20011 | -5/Warlord | Warlord forces counterattacked 20015 | -5/Warlord | X0-1V1 activates XOMVISION 20114 | -5/Warlord | Lost 3 allies 20383 | -5/Warlord | Spotted Striker 20409 | -5/Warlord | Warlord base infiltrated, sounded retreat 20455 | -5/Warlord | Spotted Executioner 20457 | -5/Warlord | Allies destroyed Executioner 20513 | -5/Warlord | Discovered new exit (range 14) 20535 | -5/Warlord | Attacked by Warlord forces 20537 | -5/Warlord | Spotted 8W-T86(B) 20537 | -5/Warlord | Entered Proximity Caves 20537 | -4/Proximity Caves | Accompanied by 3 allies 20584 | -4/Proximity Caves | X0-1V1 activates XOMVISION 20651 | -4/Proximity Caves | Identified exit to Factory 20651 | -4/Proximity Caves | X0-1V1 revealed exit location to -4/Factory 20872 | -4/Proximity Caves | Learned Research stockpile data 21098 | -4/Proximity Caves | X0-1V1 activates XOMVISION 21201 | -4/Proximity Caves | System corruption reached 10% 21257 | -4/Proximity Caves | X0-1V1 mutated your Weapon slot to Propulsion slot 21259 | -4/Proximity Caves | X0-1V1 vaporized surrounding terrain (radius 23) 21395 | -4/Proximity Caves | Entered Factory 21395 | -4/Factory | Accompanied by 3 allies 21395 | -4/Factory | Evolved 2 slots: Utility x1, Weapon x1 21397 | -4/Factory | Loaded intel: 246 machine locations 21419 | -4/Factory | X0-1V1 added 0b10 threat records associated with you (major) 21513 | -4/Factory | X0-1V1 redirected Transport squads to designated parking area 21525 | -4/Factory | X0-1V1 upgraded hostiles (x1) 21577 | -4/Factory | Fabricated Deep Structural Scanner (x1) 22210 | -4/Factory | Identified exit to Upper Caves 22252 | -4/Factory | Intercept squad dispatched 22258 | -4/Factory | Spotted Tracker 22259 | -4/Factory | Spotted Tracker 22267 | -4/Factory | Destroyed Tracker 22274 | -4/Factory | Destroyed Tracker 22279 | -4/Factory | Found Exp. Phase Shifter 22292 | -4/Factory | Found Exp. Targeting Computer 22315 | -4/Factory | Discovered new exit (range 8) 22340 | -4/Factory | Spotted Combat Programmer 22345 | -4/Factory | Tech Extrapolator generated special schematic: Vmp. Heavy Siege Treads 22346 | -4/Factory | Spotted Combat Programmer 22378 | -4/Factory | X0-1V1 whisked you away to safety 22378 | -4/Factory | System corruption reached 10% 22405 | -4/Factory | Lost 5 parts (1n2u2w) 22634 | -4/Factory | Build established: Scavenger-Gunner 22646 | -4/Factory | Spotted B-86 Titan 22699 | -4/Factory | Destroyed B-86 Titan 22724 | -4/Factory | Lost 7 parts (2p1n1u3w) 22849 | -4/Factory | Destroyed Combat Programmer 22895 | -4/Factory | First assault squad dispatched 22949 | -4/Factory | Destroyed 9 combat bots 22957 | -4/Factory | Lost 5 parts (4n1u) 23054 | -4/Factory | X0-1V1 activates XOMVISION 23090 | -4/Factory | System corruption reached 30% 23122 | -4/Factory | Lost 3 parts (1n2u) 23222 | -4/Factory | Build established: Scavenger-Mutant 23344 | -4/Factory | Core integrity restored by X0-1V1 (+180) 23362 | -4/Factory | Intercept squad dispatched 23363 | -4/Factory | Spotted Tracker 23364 | -4/Factory | Spotted Tracker 23365 | -4/Factory | Entered Upper Caves 23410 | -4/Upper Caves | Core integrity fell below 50% 23442 | -4/Upper Caves | Lost 17 parts (2p4n4u7w) 23599 | -4/Upper Caves | X0-1V1 activates XOMVISION 23814 | -4/Upper Caves | X0-1V1 activates XOMVISION 24113 | -4/Upper Caves | Build established: Scavenger-Tank 24370 | -4/Upper Caves | Lost 6 parts (3n2u1w) 24448 | -4/Upper Caves | Learned location of 1 exit from Research 24539 | -4/Upper Caves | Discovered new exit (range 21) 24663 | -4/Upper Caves | X0-1V1 vaporized surrounding terrain (radius 15) 24732 | -4/Upper Caves | Entered another Upper Caves area 24734 | -4/Upper Caves | Attracted the attention of an 0b10 checkpoint 24778 | -4/Upper Caves | Lost 3 parts (1p1n1w) 24819 | -4/Upper Caves | Learned Research security intel 25356 | -4/Upper Caves | Discovered new exit (range 20) 25373 | -4/Upper Caves | Learned Research terminal intel 25436 | -4/Upper Caves | Attacked by a delusional Derelict stockpiling parts 25503 | -4/Upper Caves | X0-1V1 activates XOMVISION 25526 | -4/Upper Caves | Entered Zhirov 25528 | -4/Zhirov | Discovered new exit (range 3) 25557 | -4/Zhirov | Met Zhirov 25604 | -4/Zhirov | Zhirov requested help retrieving the SGEMP Prototype 25633 | -4/Zhirov | Found Alien Artifact 25633 | -4/Zhirov | Identified Integrated Reactor 25633 | -4/Zhirov | Installed Integrated Reactor, increased core energy generation (+10) 25653 | -4/Zhirov | Found Alien Artifact 25828 | -4/Zhirov | Build established: Scavenger-Mutant 25865 | -4/Zhirov | Cloak Generator disabled 25865 | -4/Zhirov | Attacked by Zhirov 25867 | -4/Zhirov | Entered Proximity Caves 26169 | -3/Proximity Caves | Build established: Scavenger-Tank 26418 | -3/Proximity Caves | X0-1V1 activates XOMVISION 26692 | -3/Proximity Caves | Build established: Derelict-Tank 26898 | -3/Proximity Caves | X0-1V1 activates XOMVISION 27110 | -3/Proximity Caves | Discovered new exit (range 8) 27128 | -3/Proximity Caves | Entered Research 27128 | -3/Research | Evolved 2 slots: Propulsion x1, Weapon x1 27129 | -3/Research | Identified exit to Quarantine 27132 | -3/Research | Loaded intel: 108 machine locations 27133 | -3/Research | Loaded intel: 24 terminal locations 27417 | -3/Research | Spotted B-86 Titan 27538 | -3/Research | Destroyed B-86 Titan 27554 | -3/Research | X0-1V1 activates XOMVISION 27636 | -3/Research | Identified exit to Armory 27636 | -3/Research | X0-1V1 revealed exit location to -3/Armory 27637 | -3/Research | Build established: Scavenger-Tank 27693 | -3/Research | Found Hvy. Reflective Plating 27717 | -3/Research | Weapon slot count temporarily expanded by X0-1V1 (+3) 27761 | -3/Research | Discovered new exit (range 21) 27789 | -3/Research | X0-1V1 sent allied Mutant (x4) 27791 | -3/Research | Spotted B-86 Titan 27795 | -3/Research | Destroyed B-86 Titan 27820 | -3/Research | X0-1V1 enhanced Transport squad support 27858 | -3/Research | Intercept squad dispatched 27880 | -3/Research | Spotted Tracker 27892 | -3/Research | X0-1V1 made a cryptic comment about sterilization and BL-4Z3 27892 | -3/Research | Allies destroyed Tracker 27926 | -3/Research | Spotted Combat Programmer 27933 | -3/Research | Destroyed Combat Programmer 28002 | -3/Research | Sterilization system engaged 28002 | -3/Research | Non-combat units ordered to evacuate 28021 | -3/Research | Build established: Scavenger-Executioner 28102 | -3/Research | Combat units ordered to evacuate 28201 | -3/Research | X0-1V1 revealed exit location to -3/Quarantine 28302 | -3/Research | Ambient heat levels rising (+10) 28334 | -3/Research | Found Unknown Launcher 28334 | -3/Research | Identified Gamma Bomb Array 28404 | -3/Research | Entered Quarantine 28405 | -3/Quarantine | Loaded intel: 84 machine locations 28452 | -3/Quarantine | Found Alien Artifact 28552 | -3/Quarantine | Found Alien Artifact 28617 | -3/Quarantine | Cryocooling Duct disabled 28632 | -3/Quarantine | Ambient heat levels rising (+20) 28632 | -3/Quarantine | Non-combat units ordered to evacuate 28667 | -3/Quarantine | Build established: Scavenger-Tank 28744 | -3/Quarantine | Found Alien Impact Weapon 28821 | -3/Quarantine | Identified Core Stripper 28849 | -3/Quarantine | Spotted Fortress 28858 | -3/Quarantine | Destroyed Fortress 28873 | -3/Quarantine | Found Centrium Heavy Armor Plating 28876 | -3/Quarantine | Found Prototype Device 28876 | -3/Quarantine | Identified Exp. Force Field 28900 | -3/Quarantine | X0-1V1 vaporized surrounding terrain (radius 22) 28904 | -3/Quarantine | Found Prototype Reactor 28904 | -3/Quarantine | Identified Vortex Chain Reactor 28911 | -3/Quarantine | Found Exp. EM Shield 28936 | -3/Quarantine | Intercept squad dispatched 28946 | -3/Quarantine | Spotted Tracker 28947 | -3/Quarantine | Spotted Tracker 28974 | -3/Quarantine | Destroyed Tracker 28978 | -3/Quarantine | Destroyed Tracker 28983 | -3/Quarantine | Spotted Combat Programmer 28985 | -3/Quarantine | Destroyed Combat Programmer 28995 | -3/Quarantine | Identified exit to Protoforge 28995 | -3/Quarantine | X0-1V1 revealed exit location to -3/Protoforge 28995 | -3/Quarantine | Destroyed Combat Programmer 29017 | -3/Quarantine | Found Exp. Targeting Computer 29112 | -3/Quarantine | Discovered new exit (range 6) 29121 | -3/Quarantine | Entered Protoforge 29122 | -3/Protoforge | Loaded intel: 386 machine locations 29178 | -3/Protoforge | Build established: Tank 29193 | -3/Protoforge | Spotted Hotshot 29193 | -3/Protoforge | Spotted Hotshot 29193 | -3/Protoforge | Spotted Hotshot 29206 | -3/Protoforge | X0-1V1 sent you into danger 29210 | -3/Protoforge | Destroyed Hotshot 29210 | -3/Protoforge | Destroyed Hotshot 29210 | -3/Protoforge | System corruption reached 10% 29213 | -3/Protoforge | Destroyed Hotshot 29224 | -3/Protoforge | Superfortress began startup sequence 29314 | -3/Protoforge | Found Hvy. Scimitar of Distortion 29633 | -3/Protoforge | Identified Ghost Barrier (x2) 29633 | -3/Protoforge | Identified Deep Network Scanner 29654 | -3/Protoforge | Found Cep. NT7 Matterbank 29662 | -3/Protoforge | Found Cep. NT7 Matterbank 29705 | -3/Protoforge | X0-1V1 sent hostile L-61 Swordsman (x3) 29740 | -3/Protoforge | Identified Terrabomb 29740 | -3/Protoforge | Used Terrabomb 29740 | -3/Protoforge | Additional patrols dispatched to research labs 29744 | -3/Protoforge | X0-1V1 vaporized surrounding terrain (radius 22) 29755 | -3/Protoforge | Crushed by falling debris 29773 | -3/Protoforge | X0-1V1 activates XOMVISION 29777 | -3/Protoforge | Spotted Immortal 29777 | -3/Protoforge | Spotted Immortal 29832 | -3/Protoforge | Destroyed Immortal 29836 | -3/Protoforge | Destroyed Immortal 29847 | -3/Protoforge | Found Corrupted Cep. Antimissile System 29876 | -3/Protoforge | Spotted Decapitator 29876 | -3/Protoforge | Spotted Decapitator 29876 | -3/Protoforge | Spotted Decapitator 29876 | -3/Protoforge | Spotted Decapitator 29882 | -3/Protoforge | Destroyed Decapitator 29882 | -3/Protoforge | Destroyed Decapitator 29882 | -3/Protoforge | Destroyed Decapitator 29888 | -3/Protoforge | Destroyed Decapitator 29917 | -3/Protoforge | Spotted Immortal 29922 | -3/Protoforge | Spotted Immortal 29926 | -3/Protoforge | Destroyed Immortal 30136 | -3/Protoforge | Build established: Scavenger-Tank 30156 | -3/Protoforge | Found Cep. Projectile Intercept Suite 30208 | -3/Protoforge | Spotted Immortal 30211 | -3/Protoforge | Spotted Immortal 30224 | -3/Protoforge | Destroyed Immortal 30234 | -3/Protoforge | Destroyed Immortal 30242 | -3/Protoforge | Found Corrupted Exp. Jetlance 30250 | -3/Protoforge | Identified Transdimensional Reconstructor 30255 | -3/Protoforge | Found Crosscalibrator 30289 | -3/Protoforge | Destroyed Immortal 30319 | -3/Protoforge | X0-1V1 sent allied B-99 Colossus (x1) 30352 | -3/Protoforge | Spotted V340-r 30360 | -3/Protoforge | Weapon slot count temporarily expanded by X0-1V1 (+1) 30360 | -3/Protoforge | Spotted V208-f 30362 | -3/Protoforge | Destroyed V340-r 30370 | -3/Protoforge | Destroyed V208-f 30553 | -3/Protoforge | Found Cep. Biometal Exoskeleton 30557 | -3/Protoforge | Intercept squad dispatched 30581 | -3/Protoforge | Spotted Tracker 30586 | -3/Protoforge | Destroyed Tracker 30591 | -3/Protoforge | Spotted Combat Programmer 30601 | -3/Protoforge | Destroyed Combat Programmer 30621 | -3/Protoforge | First assault squad dispatched 30637 | -3/Protoforge | Garrison activated, responded to threat 30810 | -3/Protoforge | X0-1V1 mutated your Utility slot to Weapon slot 30871 | -3/Protoforge | Destroyed 9 combat bots 30871 | -3/Protoforge | Spotted Decapitator 30871 | -3/Protoforge | Spotted V193-b 30967 | -3/Protoforge | Spotted V949-g 30967 | -3/Protoforge | Spotted V990-h 30968 | -3/Protoforge | Spotted V474-k 30968 | -3/Protoforge | X0-1V1 activates XOMVISION 30995 | -3/Protoforge | Spotted Immortal 30999 | -3/Protoforge | Core integrity fell below 50% 31002 | -3/Protoforge | Spotted Immortal 31012 | -3/Protoforge | Destroyed V990-h 31025 | -3/Protoforge | Destroyed Immortal 31034 | -3/Protoforge | Destroyed Immortal 31045 | -3/Protoforge | Destroyed V474-k 31061 | -3/Protoforge | System corruption reached 30% 31074 | -3/Protoforge | Lost 14 parts (1p4n6u3w) 31080 | -3/Protoforge | Found Cep. Core Shell 31087 | -3/Protoforge | Found Corrupted Cep. Antimissile System 31091 | -3/Protoforge | Found Femtoactuators 31111 | -3/Protoforge | Found Exp. Armor Integrity Analyzer 31352 | -3/Protoforge | Build established: Scavenger-Gladiator 31416 | -3/Protoforge | Intercept squad dispatched 31437 | -3/Protoforge | Core integrity fell below 20% 31442 | -3/Protoforge | X0-1V1 downgraded hostiles (x3) 31445 | -3/Protoforge | X0-1V1 sent allied B-99 Colossus (x1) 31445 | -3/Protoforge | Spotted Tracker 31447 | -3/Protoforge | Spotted Tracker 31447 | -3/Protoforge | Spotted Tracker 31455 | -3/Protoforge | Destroyed Tracker 31462 | -3/Protoforge | Destroyed Tracker 31466 | -3/Protoforge | Allies destroyed Tracker 31525 | -3/Protoforge | Spotted Combat Programmer 31525 | -3/Protoforge | Spotted Combat Programmer 31526 | -3/Protoforge | Spotted Combat Programmer 31528 | -3/Protoforge | Destroyed Combat Programmer 31530 | -3/Protoforge | Destroyed Combat Programmer 31542 | -3/Protoforge | Destroyed Combat Programmer 31601 | -3/Protoforge | Destroyed 8 combat bots 31775 | -3/Protoforge | X0-1V1 sent allied Lightning (x1) 31833 | -3/Protoforge | Spotted Decapitator 31833 | -3/Protoforge | Spotted Decapitator 31844 | -3/Protoforge | Destroyed Decapitator 31845 | -3/Protoforge | Destroyed Decapitator 31874 | -3/Protoforge | Scanned by Researcher 31969 | -3/Protoforge | Identified exit to Research 31969 | -3/Protoforge | X0-1V1 revealed exit location to -2/Research 31974 | -3/Protoforge | Spotted Immortal 31974 | -3/Protoforge | Spotted Immortal 31976 | -3/Protoforge | Spotted V996-s 31991 | -3/Protoforge | Destroyed Immortal 31992 | -3/Protoforge | Destroyed Immortal 31994 | -3/Protoforge | Found Corrupted Exp. Jetlance 31997 | -3/Protoforge | Spotted V698-m 31999 | -3/Protoforge | Spotted V836-v 32028 | -3/Protoforge | Found Cep. Miniperforator 32041 | -3/Protoforge | Found Cep. Variable Chargecaster 32048 | -3/Protoforge | Destroyed by P-80 Master with Gamma Rifle Last Messages --------------- 32040_ Penetrated by Railslug. 32040_ Railslug penetrates Reinforced Barrier. 32041_ Acquired Cep. Variable Chargecaster. 32042_ Penetrated by Slug. 32043_ System corrupted: Cep. Variable Chargecaster failed to cycle. 32043_ Penetrated by Railslug. 32043_ Knocked back. 32043_ Penetrated by Railslug. 32043_ Railslug penetrates Reinforced Barrier. 32045_ System corrupted: Graphene Brace rejected. 32045_ Acquired Graphene Brace. 32046_ Penetrated by Slug. 32046_ Penetrated by Railslug. 32046_ Railslug penetrates Reinforced Barrier. 32046_ Railslug penetrates Machine. 32046_ Railslug penetrates Reinforced Barrier. 32046_ Exp. Heat Sink destroyed. 32046_ Forge Pylon damaged. 32047_ Acquired 4 matter. 32048_ X0-1V1 howls with laughter! Map ----- +----------------------------------------------------+ | ?????????????????????????????????????????????????? | | ?????????????????????????????????????????????????? | | ?????????????????????????????????????????????????? | | ?????????????????????????????????????????????????? | | ?????????????????????????????????????????????????? | | ?????????????????????????????????????????????????? | | ?????????????????????????????????????????????????? | | ?????????????????????????????????????????????????? | | ?????????????????????????????????????????????????? | | ?????????????????????????????????????????????????? | | ?????????????????????????????????????????????????? | | ?????????????????????????????????????????????????? | | ?????????????????????????????????????????????????? | | ?????????????????????????????????????????????????? | | ?????????????????????####????????????????????????? | | ????????????????#""### ###??????????????????????? | | ???????????????"" "#??????????????????????? | | ??????????????#" "#??????????????????????? | | ############### ""#??????????????????????? | | %%p= """"#??????????????????????? | | p* """"#??????????????????????? | | #####++########= ""#??????????????????????? | | ???" #%V %%"#??????????????????????? | | ???" "% V %"##??????????????????????? | | ???"?" " "% /[ [[[%#??????????????????????? | | ???"""""""# " "[][[/ @#??????????????????????? | | ??????????# #####" %% #??????????????????????? | | ??????????####????#########??????????????????????? | | ?????????????????????????????????????????????????? | | ?????????????????????????????????????????????????? | | ?????????????????????????????????????????????????? | | ?????????????????????????????????????????????????? | | ?????????????????????????????????????????????????? | | ????????????????????#######??????????????????????? | | ????????????????????#!=!!!#??????????????????????? | | ????????????????????#! !!!#??????????????????????? | | ?????????????###"""## ""###??????????????????????? | | ?????????????# ! %$"#??????????????????????? | | ?????????????# !$$""#??????????????????????? | | ############## !""""#??????????????????????? | | ^ """"#??????????????????????? | | ^ ""#??????????????????????? | | ####### #"" "#??????????????????????? | | ??????#"""""#"" "#??????????????????????? | | ??????#######?#"" """""""##??????????????????????? | | ?????????????#" ! !! "#??????????????????????? | | ?????????????#" ! ! !"#??????????????????????? | | ?????????????#""""""""""""#??????????????????????? | | ?????????????##############??????????????????????? | | ?????????????????????????????????????????????????? | +----------------------------------------------------+ Best States ------------- Heat Dissipation 167 Coolant Potential 100 Energy Generation 80 Energy Capacity 2540 Matter Stores 800 Matter Capacity 900 Sight Range 25 Terrain Scan Range 16 Terrain Scan Density 10 ECM Strength 1 Jamming Range 16 Additional Mass Support 16 Base Temperature (-) 200 Armor Coverage 1250 Resistance: KI 43 Resistance: TH 30 Resistance: EM 20 Core Shielding 90 Weapon Shielding 90 Point Defense Rating 480 Melee Speed Boost 50 Evasion (%) 55 Targeting Accuracy 12 Target Analysis 12 Core Analysis 9 Recoil Reduction 6 Kinecelleration 30 Authchip Count 1 Item Schematics ----------------- Mak. Leg | -8/Scraptown | Extrapolated Lgt. Humpback | -8/Scraptown | Extrapolated Vmp. Humpback | -8/Scraptown | Extrapolated Machine Rigger | -8/Scraptown | Extrapolated 0b10 Decoder Chip [Skirmisher] | -8/Scraptown | Extrapolated Mak. Coolant Network | -8/Scraptown | Extrapolated Deep Structural Scanner | -6/Factory | Extrapolated Mak. ECM Suite | -6/Factory | Extrapolated Beamcaster | -6/Factory | Extrapolated Mak. Spear | -6/Factory | Extrapolated Mak. Power Source | -6/Factory | Extrapolated Mak. Targeting Computer | -6/Factory | Extrapolated Active Sensor Spoofer | -6/Factory | Extrapolated Mak. Kinetic Plating | -6/Factory | Extrapolated Vmp. Brace Plating | -6/Factory | Extrapolated Mak. Laser | -6/Factory | Extrapolated Mak. Hover Unit | -6/Factory | Extrapolated Mak. Core Shielding | -6/Factory | Extrapolated Mak. Medium Armor Plating | -6/Factory | Extrapolated Mak. Ablative Armor | -6/Factory | Extrapolated Mak. Transmission Jammer | -6/Factory | Extrapolated Mak. Heavy Armor Plating | -6/Factory | Extrapolated Tactical Coordination Suite | -6/Factory | Extrapolated Mak. Thermal Plating | -6/Factory | Extrapolated Mak. Sensor Array | -6/Factory | Extrapolated Humpback | -6/Factory | Extrapolated 0b10 Decoder Chip [Looter] | -6/Factory | Extrapolated 0b10 Decoder Chip [Generic] | -6/Factory | Extrapolated 0b10 Decoder Chip [Scout] | -6/Factory | Extrapolated Slug Cannon | -6/Lower Caves | Extrapolated Spk. Treads | -6/Lower Caves | Extrapolated Spk. Medium Treads | -6/Lower Caves | Extrapolated Hvy. Beamcaster | -6/Lower Caves | Extrapolated Hvy. Battle Rifle | -6/Lower Caves | Extrapolated Enh. Flamer | -6/Lower Caves | Extrapolated Combat Drone Bay | -6/Data Miner | Free Lgt. Regenerative Plating | -6/Data Miner | Free Cld. Nuclear Pulse Thruster | -6/Data Miner | Free Prc. Matter Filter | -6/Data Miner | Free Smartbomb Launcher | -6/Data Miner | Free Imp. Gyrokinetic Inverter | -6/Data Miner | Free Adv. Focal Shield | -6/Data Miner | Free HERF Cannon | -6/Data Miner | Free Mapping Drone Bay | -5/Proximity Caves | Extrapolated Vmp. Broadsword | -5/Proximity Caves | Extrapolated Mak. Terrain Scan Processor | -5/Factory | Extrapolated Energy Deflector | -5/Factory | Extrapolated Mak. System Shield | -5/Upper Caves | Extrapolated Bore Cannon | -5/Upper Caves | Extrapolated Plasma Flamer | -5/Upper Caves | Extrapolated Heat Bomb Trap | -5/Upper Caves | Extrapolated Mak. Hacking Suite | -5/Warlord | Extrapolated Mak. Salvage Targeting Computer | -5/Warlord | Extrapolated Arc Thrower | -5/Warlord | Extrapolated Mak. Light Armor Plating | -5/Warlord | Extrapolated Mak. Weapon Shielding | -5/Warlord | Extrapolated Spk. Heavy Treads | -5/Warlord | Extrapolated Imp. Arc Thrower | -5/Warlord | Extrapolated Multitool | -5/Warlord | Extrapolated Mak. Hammer | -5/Warlord | Extrapolated Mak. Shrapnel Gun | -5/Warlord | Extrapolated Mak. Flight Unit | -4/Proximity Caves | Extrapolated Mak. Terrain Scanner | -4/Factory | Extrapolated Vmp. Heavy Siege Treads | -4/Factory | Extrapolated Assault Drone Bay | -4/Zhirov | Free Exp. Heat Sink | -4/Zhirov | Free Exp. Optical Array | -4/Zhirov | Free Mak. Propulsion Shielding | -4/Zhirov | Extrapolated Hds. Centrium Wheel | -3/Protoforge | Archive Enh. Biometal Leg | -3/Protoforge | Archive Graviton Reactor | -3/Protoforge | Archive Centrium Heavy Armor Plating | -3/Protoforge | Archive Diametric Drive | -3/Protoforge | Archive Tactical Quantum Warhead | -3/Protoforge | Archive Impact Mace | -3/Protoforge | Archive Gravity Neutralizer | -3/Protoforge | Archive Robot Schematics ------------------ M-13 Machinist | -10/Materials | Hacked Y-54 Guardian | -6/Data Miner | Free D-63 Destroyer | -6/Data Miner | Free L-41 Fighter | -6/Data Miner | Free M-22 Extractor | -6/Data Miner | Free B-60 Warrior | -6/Data Miner | Free B-74 Champion | -3/Protoforge | Archive T-07 Excavator | -3/Protoforge | Archive L-61 Swordsman | -3/Protoforge | Archive R-10 Processor | -3/Protoforge | Archive Fabricated ------------ Deep Structural Scanner | x1 | -4/Factory | Authchip Repaired ---------- Lgt. Cannon | 4% | -10/Materials Studied --------- None Alien Tech Used ----------------- Integrated Reactor Core Stripper Terrabomb Achievements -------------- Coming In Hot Incoming! Loot Taster Not Immortal After All Partsplosion Strength In Numbers Challenges ------------ None Game ------ Seed ElectrostormFlyingAirjet Manual? 0 Play Time 05:28:09 Cumulative 1547.4 hours Start 2026.07.15 @ 21:20:54 End 2026.07.18 @ 16:28:04 Sessions 13 Manual Loads 0 Difficulty Rogue Special Mode None Game No. 681 Rogue 681 Adventurer 0 Explorer 0 Win Type - Total 32 Types 15/7/3/0/1/1/2/2/0/1 Lore% 94 Gallery% 87 Achievement% 77 Wizard Run 0 Options --------- Layout 0 ASCII 0 Keyboard 0 Movement Numpad Keybinds 0 Fullscreen 2 Font 24/Smallcaps Map View 76x50 Zoom Use 0% Tactical HUD 1 Map Filters NONE Filters NONE Steam 1 RUN: d545e64f-5ff7-400a-9b7f-47d393823520